Cogmind - Beta 15 @@@ ROGUE MODE // 2025.06.19 @ 00:59:41 Player: morimori Result: Destroyed by MAIN.C with Omega Cannon Performance ------------- Evolutions (9) 4500 Regions Visited (36) 7200 Robots Destroyed (480) 2400 Value Destroyed (19870) 19870 Prototype IDs (99) 1980 Alien Tech Used (10) 2000 Bonus (21409) 21409 TOTAL SCORE: 59359 Bonus ------- Triggered High Security 500 High Alert Combat Kills 4582 Follower Combat Kills 2389 Network Hubs Disabled 400 Met Zhirov 300 MAIN.C Attacked Warlord 500 Warlord Defense Kills 1672 Built Enhanced Grunts 300 Met R17 at Cetus 500 Used Core Reset Matrix 3000 Met R17 at Research 2000 Met MAIN.C 5000 Destroyed MAIN.C Shell 5000 Friendly Fire -4734 Cogmind --------- Core Integrity 0/1600 Matter 139/300 Energy 143/700 System Corruption 59% Temperature Warm (167) Movement Walking (115) Location -1/Command Parts ------- > --- POWER (2) -------- Vortex Chain Reactor (fused) > --- PROPULSION (6) --- Centrium Leg Centrium Leg High-density Centrium Leg Myomer Exoskeleton > --- UTILITY (14) ----- Advanced Coolant Injector Huge Storage Unit Experimental Terrain Scan Processor Experimental Targeting Computer Advanced Particle Charger Advanced Weapon Cycler Graphene Brace AEGIS Remote Shield Microwarp Drive > --- WEAPON (4) ------- Helical Railgun Helical Railgun Enhanced Hardcell Cannon Graviton Cannon > --- INVENTORY (29) --- Vortex Chain Reactor High-density Centrium Leg Experimental Coolant Injector Experimental Matter Compressor (500) Long-range Terrain Scanner Precision Energy Filter Precision Energy Filter Advanced Transmission Jammer Advanced Phase Shifter Advanced Thermal Shield Thermal Barrier Experimental Shock Absorption System Transdimensional Reconstructor High-powered Transdimensional Reconstructor Core Cannon Heavy Machine Gun KE Penetrator Helical Railgun Graviton Cannon Gamma Bomb Array Gamma Bomb Array Sigix Broadsword Peak State ------------ > --- POWER ------------ Vortex Chain Reactor > --- PROPULSION ------- Centrium Leg Centrium Leg High-density Centrium Leg Myomer Exoskeleton > --- UTILITY ---------- Huge Storage Unit Experimental Signal Interpreter Experimental Terrain Scan Processor Experimental Targeting Computer Advanced Weapon Cycler Advanced Transmission Jammer Advanced Reaction Control System Advanced Phase Shifter Experimental Utility Shielding Graphene Brace Advanced Component Analysis Suite Microwarp Drive > --- WEAPON ----------- Perforator Sigix Broadsword > --- INVENTORY -------- Vortex Chain Reactor Advanced Coolant Injector Advanced Coolant Injector Long-range Sensor Array Long-range Terrain Scanner Precision Energy Filter Precision Energy Filter Advanced Kinecellerator Experimental Utility Shielding Heavy Reactive Plating Advanced Thermal Shield Experimental Shock Absorption System Advanced Hardlight Generator Transdimensional Reconstructor High-powered Transdimensional Reconstructor Integrity Redistributor Heavy Neutron Cannon Core Cannon Helical Railgun Helical Railgun Helical Railgun Enhanced Hardcell Cannon Gamma Bomb Array Gamma Bomb Array Guided Micro-nuke Launcher [Rating: 284] Favorites ----------- Power Vortex Chain Reactor Engine Cooled Ion Engine Power Core Micro Nuclear Core Reactor Vortex Chain Reactor Propulsion Advanced Myomer Leg Treads Biometal Medium Treads Leg Advanced Myomer Leg Wheel Armored Wheel Hover Unit Combat Airjet Utility Long-range Sensor Array Device Long-range Sensor Array Storage Huge Storage Unit Processor Experimental Targeting Computer Hackware Improved Hacking Suite Protection Experimental Utility Shielding Artifact Microwarp Drive Weapon Power Maul Energy Gun Field Laser Energy Cannon Matter Neutralizer Ballistic Gun Advanced KE Penetrator Ballistic Cannon Antimatter Cannon Launcher Gamma Bomb Array Special Weapon RU-N14's Throwing Claymores Impact Weapon Power Maul Slashing Weapon Sigix Broadsword Piercing Weapon Force Lance Build | -11 -10 -10 -9 -9 -8 -7 -7 -7 -7 -6 -6 -6 -6 -6 -6 -6 -6 -5 -5 -5 -5 -4 -4 -4 -4 -4 -4 -4 -3 -3 -3 -2 -2 -2 -1 -1 ------- Run | Yrd Mat Min Mat Min Mat Fac Low Low Zio Pro Fac Was Fac Ext Cet Arc Hub Fac Upp Upp War Pro Fac Was Fac Upp Upp Zhi Pro Res Qua Res Tes Sec Acc Com Slots Evolved 18 | . . . 2 . 2 2 . . . . 2 . . . . . . 2 . . . . 2 . . . . . . 2 . 2 . . 2 . Power 1 | . . . . . . . . . . . . . . . . . . . . . . . . . . . . . . 1 . . . . . . Propulsion 4 | . . . . . 2 1 . . . . . . . . . . . 1 . . . . . . . . . . . . . . . . . . Utility 12 | . . . 2 . . 1 . . . . 2 . . . . . . 1 . . . . 2 . . . . . . . . 2 . . 2 . Weapon 1 | . . . . . . . . . . . . . . . . . . . . . . . . . . . . . . 1 . . . . . . Parts Attached 276 | 8 18 . 18 9 18 32 . . 4 . 11 4 4 7 4 10 3 13 . 3 6 . 11 . 27 1 . 7 . 15 10 4 7 8 3 11 Power 26 | 1 3 . 4 . 3 2 . . . . . . . 1 1 2 1 2 . . . . . . 1 . . 1 . 3 . . . 1 . . Engine 12 | 1 3 . 4 . 1 1 . . . . . . . . . 1 1 . . . . . . . . . . . . . . . . . . . Core 6 | . . . . . 2 1 . . . . . . . 1 . 1 . 1 . . . . . . . . . . . . . . . . . . Reactor 8 | . . . . . . . . . . . . . . . 1 . . 1 . . . . . . 1 . . 1 . 3 . . . 1 . . Propulsion 79 | 2 5 . 3 2 5 17 . . . . 5 . . 1 . 3 2 3 . 1 2 . 4 . 6 . . 4 . 5 1 2 1 2 1 2 Treads 2 | . . . . . . . . . . . . . . . . . . . . . . . . . . . . . . 2 . . . . . . Leg 16 | . . . . . . . . . . . . . . . . . . . . . . . . . . . . 4 . 3 1 2 1 2 1 2 Wheel 17 | 2 5 . 3 2 5 . . . . . . . . . . . . . . . . . . . . . . . . . . . . . . . Hover 44 | . . . . . . 17 . . . . 5 . . 1 . 3 2 3 . 1 2 . 4 . 6 . . . . . . . . . . . Flight . | . . . . . . . . . . . . . . . . . . . . . . . . . . . . . . . . . . . . . Utility 97 | 2 4 . 4 6 6 8 . . 3 . 3 1 1 2 2 3 . 4 . . 2 . 6 . 13 1 . 2 . 4 6 1 2 2 2 7 Device 47 | 1 2 . . 5 2 3 . . 1 . . 1 1 . . 2 . 1 . . 1 . 2 . 5 1 . 1 . 3 5 1 2 1 2 4 Storage 8 | 1 2 . 1 . . 1 . . . . . . . . . . . 1 . . . . . . . . . . . . . . . . . 2 Processor 8 | . . . 1 . 1 . . . 2 . . . . 1 . . . . . . . . 1 . 2 . . . . . . . . . . . Hackware 14 | . . . . . . . . . . . 2 . . 1 . 1 . 2 . . 1 . 3 . 4 . . . . . . . . . . . Protection 18 | . . . 2 1 3 4 . . . . 1 . . . 2 . . . . . . . . . 2 . . 1 . 1 . . . . . 1 Artifact 2 | . . . . . . . . . . . . . . . . . . . . . . . . . . . . . . . 1 . . 1 . . Weapon 74 | 3 6 . 7 1 4 5 . . 1 . 3 3 3 3 1 2 . 4 . 2 2 . 1 . 7 . . . . 3 3 1 4 3 . 2 Energy Gun 13 | . 2 . 5 1 4 . . . . . . . . . . . . . . . 1 . . . . . . . . . . . . . . . Energy Cannon 9 | . . . 1 . . . . . . . 1 . 1 . 1 . . . . . 1 . . . 1 . . . . 1 2 . . . . . Ballistic Gun 21 | 3 4 . . . . 2 . . . . . 1 2 . . 2 . . . 1 . . . . 1 . . . . 1 . . 1 3 . . Ballistic Cannon 17 | . . . . . . 1 . . . . 1 1 . 2 . . . 3 . 1 . . . . 3 . . . . 1 . 1 1 . . 2 Launcher 9 | . . . 1 . . 1 . . . . . 1 . 1 . . . 1 . . . . 1 . 1 . . . . . . . 2 . . . Special Weapon 2 | . . . . . . . . . 1 . 1 . . . . . . . . . . . . . . . . . . . . . . . . . Impact Weapon 1 | . . . . . . 1 . . . . . . . . . . . . . . . . . . . . . . . . . . . . . . Slashing Weapon 1 | . . . . . . . . . . . . . . . . . . . . . . . . . . . . . . . 1 . . . . . Piercing Weapon 1 | . . . . . . . . . . . . . . . . . . . . . . . . . 1 . . . . . . . . . . . Special Melee Weapon . | . . . . . . . . . . . . . . . . . . . . . . . . . . . . . . . . . . . . . Unidentified Prototypes 30 | . . . 2 . 2 4 1 . 1 . 1 1 . . 1 1 . . . . 4 . 1 . . . . 5 . . 4 . 2 . . . Corrupted Parts 12 | . . . . . . . . . . . . . . . . 2 2 . . . . . . . . . . . . . . . . 4 . 4 System Corruption 84 | . . . . . . . . . . . . . . . . 9 20 . . . . . . . . . . . . . . . . 32 . 23 Parts Lost 38 | . 6 . 1 7 6 . . . . . . . . 1 . . 1 2 . . . . 1 . 5 . 1 . . . . . . . 1 6 Power 3 | . 1 . . . . . . . . . . . . . . . 1 . . . . . . . 1 . . . . . . . . . . . Propulsion 11 | . 1 . . 2 4 . . . . . . . . 1 . . . . . . . . . . 2 . 1 . . . . . . . . . Utility 17 | . 1 . 1 4 1 . . . . . . . . . . . . . . . . . 1 . 2 . . . . . . . . . 1 6 Weapon 7 | . 3 . . 1 1 . . . . . . . . . . . . 2 . . . . . . . . . . . . . . . . . . Highest Loss Streak 3 | . 2 . 1 3 3 . . . . . . . . 1 . . 1 1 . . . . 1 . 2 . 1 . . . . . . . 1 2 To Critical Strikes 1 | . . . . 1 . . . . . . . . . . . . . . . . . . . . . . . . . . . . . . . . Average Backups 17 | 2 9 10 15 19 24 14 13 14 13 14 14 13 13 12 14 14 14 14 14 14 14 18 18 19 18 17 16 18 21 21 21 21 20 20 24 23 Power 1 | 1 1 1 1 1 2 1 1 1 1 1 1 1 1 . 1 1 1 1 1 1 1 1 1 2 1 1 1 1 2 1 1 1 1 1 1 1 Propulsion 2 | . 5 6 6 5 4 1 2 2 1 2 2 2 2 1 1 1 1 . 1 1 . 2 3 3 . 1 . 1 . . . . . . . . Utility 8 | . . 1 3 6 9 6 7 8 8 8 6 6 6 6 7 7 8 7 8 8 8 9 8 9 9 9 9 9 10 11 13 12 12 11 12 11 Weapon 5 | . 2 2 4 5 8 5 3 3 3 3 3 3 3 3 5 5 4 4 4 4 4 5 5 5 6 6 6 6 7 6 5 6 5 5 7 7 Tool/Special . | . . . . . . . . . . . . . . . . . . . . . . . . . . . . . . . . . . . . . Unused Backups 126 | . 8 . 11 . 10 12 . . 3 . 4 1 2 . 1 1 1 6 . 1 3 . 6 1 6 . . . . 1 3 1 5 3 16 20 Power 17 | . 3 . 2 . 2 2 . . . . . . . . 1 . . 2 . . 1 . 1 . 1 . . . . 1 . . . . . 1 Propulsion 16 | . 3 . 3 . 1 . . . . . 1 . . . . . 1 1 . . . . . 1 2 . . . . . . . . 1 1 1 Utility 59 | . . . 2 . 2 3 . . 2 . 1 1 1 . . 1 . 2 . 1 2 . 4 . 3 . . . . . 2 1 4 2 13 12 Weapon 31 | . 2 . 4 . 5 7 . . 1 . 2 . 1 . . . . 1 . . . . . . . . . . . . 1 . 1 . 2 4 Tool/Special 3 | . . . . . . . . . . . . . . . . . . . . . . . 1 . . . . . . . . . . . . 2 Average Slot Usage (%) 92 | . 97 100 99 99 89 97 100 99 100 100 94 92 91 91 86 88 99 99 99 100 100 100 97 100 95 95 94 89 90 91 88 88 82 74 74 79 Engine 2 | . 12 14 11 11 3 2 . . . . . . . . . . 5 2 . . . . . . . . . . . . . . . . . . Core 1 | . . . . . 5 4 7 7 7 7 6 6 6 5 5 1 . . . . . . . . . . . . . . . . . . . . Reactor 2 | . . . . . . . . . . . . . . . . 3 . 2 5 5 5 5 4 5 5 5 5 5 5 6 4 4 4 4 3 3 Leg 5 | . . . . . . . . . . . . . . . . . . . . . . . . . . . . 14 20 24 27 25 18 16 15 15 Wheel 5 | . 27 28 22 21 26 . . . . . . . . . . . . . . . . . . . . . . . . . . . . . . . Hover 14 | . . . . . . 37 35 35 35 35 27 25 24 25 25 26 31 32 33 33 33 33 29 30 25 25 24 14 10 . . . . . . . Device 14 | . 12 14 19 14 11 14 7 6 9 7 5 6 5 4 3 5 3 8 10 11 8 5 5 10 13 15 15 15 15 17 21 24 24 17 22 33 Storage 6 | . 14 14 11 11 9 7 7 7 7 7 6 6 6 6 6 6 6 5 5 5 5 5 5 5 5 5 5 5 5 4 4 4 4 4 3 3 Processor 10 | . . . 11 6 6 7 7 7 9 14 12 12 12 14 18 18 18 11 11 11 11 11 10 10 8 15 15 15 15 13 13 12 12 12 11 7 Hackware 6 | . . . . . . . . . . . 11 12 12 11 6 7 12 15 16 16 18 22 27 25 18 5 5 5 5 4 4 4 3 . . . Protection 4 | . . . 2 11 8 5 14 14 8 7 5 6 5 4 7 3 2 1 . . . . . . 3 10 10 10 10 4 . 4 4 5 3 2 Energy Gun 4 | . 13 28 21 22 18 . . . . . . . . . . . . . . . . . . . . . . . . . . . . . . . Energy Cannon 1 | . . . . . . . . . . . 3 4 5 . 5 5 1 3 . . 2 . . . 3 5 4 . 5 5 3 3 2 2 1 1 Ballistic Gun 3 | . 14 . . . . 1 6 7 7 7 7 5 6 5 . 1 10 6 5 5 5 5 4 5 5 5 5 . . 3 2 . . 1 1 1 Ballistic Cannon 2 | . . . . . . 6 7 7 7 7 1 2 . 10 . . . . 4 5 2 3 5 5 1 . . . . 1 . . . . . 1 Impact Weapon 2 | . . . . . . 5 7 6 7 7 4 4 5 1 . . 6 4 5 5 4 5 4 5 4 5 5 5 . . . . . . . . Peak Build Rating 284 | 7 12 12 24 25 34 55 57 59 67 66 79 82 83 87 95 99 94 112 108 109 116 115 134 127 146 145 145 149 150 178 207 225 239 267 284 282 Average Rating 113 | 5 8 10 21 22 29 47 56 57 61 66 74 80 80 83 89 93 91 101 106 106 110 114 123 127 137 145 144 131 136 160 194 212 225 245 276 253 On Entrance 104 | . 7 10 12 24 20 32 53 57 57 66 66 76 80 81 87 91 89 92 103 106 106 113 114 127 127 145 145 145 136 136 174 205 225 225 260 282 Naked Turns . | . . . . . . . . . . . . . . . . . . . . . . . . . . . . . . . . . . . . . Heaviest Build 211 | 12 52 52 98 99 105 42 42 63 42 39 60 50 64 65 67 67 51 65 49 52 68 68 87 71 81 74 74 109 109 197 159 200 202 206 176 211 Greatest Support 192 | 26 26 20 24 24 54 50 42 42 42 42 55 46 46 51 51 51 49 66 62 65 69 69 71 71 75 75 75 110 110 163 166 178 190 192 192 192 Greatest Overweight (x) 8 | . 2 2 4 4 8 1 . 1 . . 1 1 1 1 1 1 1 1 . . . . 1 . 1 . . 1 . 1 . 1 1 1 . 2 Average Overweight (x) . | . . 2 2 4 2 . . . . . . . . . . . . . . . . . . . . . . . . . . . . . . . Largest Inventory Capacity 29 | 8 20 20 25 25 25 25 15 15 15 15 15 15 15 15 15 15 15 15 15 15 20 20 20 20 20 20 20 25 25 25 25 25 25 29 29 29 Average Capacity 20 | 7 9 20 20 25 25 15 15 15 15 15 15 15 15 15 15 15 15 15 15 15 15 20 20 20 20 20 20 23 25 25 25 25 25 27 29 29 Most Carried 29 | 5 11 18 22 24 25 25 15 15 15 15 15 15 15 15 15 15 15 15 15 15 17 20 20 20 20 20 20 25 25 25 25 25 25 29 29 29 Average Carried 19 | 2 9 12 19 20 24 14 14 14 14 15 14 14 14 14 14 14 15 14 14 14 15 19 19 19 19 20 19 22 24 24 24 24 24 25 28 28 Final Capacity 29 | 8 20 20 25 25 25 15 15 15 15 15 15 15 15 15 15 15 15 15 15 15 20 20 20 20 20 20 20 25 25 25 25 25 25 29 29 29 Final Carried 29 | 5 10 18 22 20 25 15 15 15 15 15 15 15 15 15 15 15 15 15 14 15 17 20 20 20 20 20 20 25 25 25 25 25 23 29 27 25 Class Distribution -------------------- 30% | Mutant 8% | Hacker-Mutant 8% | Alien-Assassin 7% | Machinist-Assassin 7% | Wizard-Mutant 6% | Hacker-Scout 4% | Alien-Mutant 4% | Commander-Skirmisher Dominant Class ---------------- Mutant | -10/Materials Mutant | -10/Mines Mutant | -9/Materials Mutant | -9/Mines Mutant | -8/Materials Mutant | -7/Factory Mutant | -7/Lower Caves Mutant | -7/Lower Caves Mutant | -7/Zion Scout | -6/Proximity Caves Hacker-Scout | -6/Factory Hacker-Scout | -6/Waste Hacker-Scout | -6/Factory Commander-Skirmisher | -6/Extension Commander-Scout | -6/Cetus Commander-Skirmisher | -6/Archives Commander-Mutant | -6/Hub_04(d) Hacker-Mutant | -5/Factory Hacker-Mutant | -5/Upper Caves Hacker-Mutant | -5/Upper Caves Hacker-Mutant | -5/Warlord Hacker-Mutant | -4/Proximity Caves Wizard-Mutant | -4/Factory Wizard-Mutant | -4/Waste Wizard-Mutant | -4/Factory Machinist-Scout | -4/Upper Caves Machinist-Scout | -4/Upper Caves Machinist-Assassin | -4/Zhirov Machinist-Mutant | -3/Proximity Caves Skirmisher | -3/Research Assassin | -3/Quarantine Machinist-Assassin | -2/Research Machinist-Assassin | -2/Testing Alien-Assassin | -2/Section 7 Alien-Assassin | -1/Access Alien-Mutant | -1/Command Resources | -11 -10 -10 -9 -9 -8 -7 -7 -7 -7 -6 -6 -6 -6 -6 -6 -6 -6 -5 -5 -5 -5 -4 -4 -4 -4 -4 -4 -4 -3 -3 -3 -2 -2 -2 -1 -1 ----------- Run | Yrd Mat Min Mat Min Mat Fac Low Low Zio Pro Fac Was Fac Ext Cet Arc Hub Fac Upp Upp War Pro Fac Was Fac Upp Upp Zhi Pro Res Qua Res Tes Sec Acc Com Matter Collected 16253 | 336 366 10 285 111 250 614 93 25 221 32 610 269 238 1446 170 209 257 768 149 49 450 35 676 . 1034 162 100 136 124 414 202 1088 837 523 929 3035 Remotely 364 | . . . . . . . . . . . . . . . . . . . . . . . 190 . . . . . . . . . 174 . . . Salvage Created 24479 | 122 638 . 753 733 1135 453 42 35 . 4 547 477 393 830 120 397 1002 818 221 . 475 50 648 . 1084 293 226 257 89 423 354 2064 2342 566 2528 4360 Parts 997 | 11 39 . 54 43 52 11 3 4 . . 16 6 9 34 4 20 53 25 2 . 10 4 12 . 19 2 5 . 8 18 20 111 106 22 126 148 Haulers Intercepted 12 | . 1 . 5 . 1 . . . . . 1 . 1 . . . 1 . . . . . . . . . . . . . . 1 . . 1 . Recyclers Shooed 22 | 1 1 . . . 1 2 . . . . 1 . 1 . . . . 1 . . . . . . 1 . . . . 4 . 2 . . 3 4 Parts Field Recycled . | . . . . . . . . . . . . . . . . . . . . . . . . . . . . . . . . . . . . . Retrieved Matter . | . . . . . . . . . . . . . . . . . . . . . . . . . . . . . . . . . . . . . Parts Self-Destructed 14 | . . . . . . . 2 1 . . . . . . . . . . 2 . . 1 . . . . 2 . 6 . . . . . . . Prevented . | . . . . . . . . . . . . . . . . . . . . . . . . . . . . . . . . . . . . . Kills | -11 -10 -10 -9 -9 -8 -7 -7 -7 -7 -6 -6 -6 -6 -6 -6 -6 -6 -5 -5 -5 -5 -4 -4 -4 -4 -4 -4 -4 -3 -3 -3 -2 -2 -2 -1 -1 ------- Run | Yrd Mat Min Mat Min Mat Fac Low Low Zio Pro Fac Was Fac Ext Cet Arc Hub Fac Upp Upp War Pro Fac Was Fac Upp Upp Zhi Pro Res Qua Res Tes Sec Acc Com Combat Hostiles Destroyed 294 | . 11 . 14 18 20 1 . 4 . 2 11 1 2 13 1 1 7 7 1 . 15 . 8 . 10 . 5 . 1 3 6 30 30 8 22 42 Melee 1 | . . . . . . . . . . 1 . . . . . . . . . . . . . . . . . . . . . . . . . . Guns 70 | . 11 . 10 18 16 . . . . . 2 1 1 4 . . 4 1 . . . . . . . . . . . 1 . . . . . 1 Cannons 92 | . . . . . . 1 . . . . 5 . 1 6 1 1 . 2 1 . 1 . 8 . 4 . . . 1 . 6 10 8 6 12 18 AOE 88 | . . . 4 . . . . 4 . . 4 . . 2 . . 2 4 . . 14 . . . 4 . 5 . . 2 . 15 14 . 5 9 Classes Destroyed 26 | 2 4 . 3 3 1 2 1 1 . 1 . 3 . 1 . . 1 . . . 1 . . . . . . . . . . . . 1 1 . Worker 40 | . . . 2 2 1 5 . . . . . . . . . . 6 1 . . . . 4 . 2 . . . . . . 7 1 . 5 4 Builder 16 | . . . . . . 1 . . . . . . . 1 . . 2 1 . . . . 1 . . . . . . 1 . 6 1 . 2 . Tunneler 10 | 2 . . 1 1 . 2 . . . . . . . 2 . . . . . . . . . . 1 . . . . . . 1 . . . . Hauler 12 | . 1 . 5 . 1 . . . . . 1 . 1 . . . 1 . . . . . . . . . . . . . . 1 . . 1 . Recycler 45 | 1 1 . . 1 1 3 . . . . 1 . 1 1 . . 1 4 . . . . 3 . 5 . . . . 2 1 4 2 1 6 6 Mechanic 1 | . . . . . . . . . . . . . . . . . . . . . 1 . . . . . . . . . . . . . . . Operator 23 | . 2 . 3 . 3 2 . . . . . . 1 . . 9 . . . . . . . . 1 . . . . . . . . . 1 1 Drone 2 | . . . . . . . . . . 2 . . . . . . . . . . . . . . . . . . . . . . . . . . Watcher 26 | . 3 . 4 . 1 . . . . . 1 . 1 2 1 . 1 3 . . . . 1 . . . . . . . 1 2 1 . 2 2 Swarmer 73 | . . . 8 3 4 . . 4 . . 3 . . . . . . 4 . . 1 . . . 4 . 5 . . 2 1 13 10 . 5 6 Saboteur 1 | . . . . . . . . . . . . . . . . . . . . . . . . . . . . . . . . . . . 1 . Grunt 86 | . 11 . 1 10 9 . . . . . 6 . 2 3 . . 6 . 1 . 10 . . . 4 . . . . . 1 4 8 . 4 6 Brawler 5 | . . . . . . . . . . . . . . . . . . . . . . . . . . . . . . . . . 2 . . 3 Duelist 9 | . . . . 2 2 . . . . . . . . . . . . . . . 1 . . . . . . . . . . . . . 1 3 Protector 2 | . . . . 1 . . . . . . . . . . . . . . . . . . . . . . . . . . . . . . . 1 Researcher 2 | . . . . . . . 1 . . . . . . . . . . . . . . . . . . . . . . . . . 1 . . . Sentry 21 | . . . 5 . 4 . . . . . . . . 7 . 1 1 . . . . . . . . . . . . 1 . . . 1 . 1 Specialist 1 | . . . . . . . . . . . . . . . . . . . . . 1 . . . . . . . . . . . . . . . Hunter 24 | . . . . . 1 . . . . . 1 . . . . . . 1 . . 2 . 2 . 2 . . . . . . 2 3 2 2 6 Programmer 57 | . . . . . . 1 . . . . 1 . . . . . . 2 . . . . 6 . . . . . 1 . 4 11 7 3 9 12 Behemoth 2 | . . . . . . . . . . . . . . 2 . . . . . . . . . . . . . . . . . . . . . . Compactor 1 | . . . . . . . . . . . . 1 . . . . . . . . . . . . . . . . . . . . . . . . Cetus Guard 1 | . . . . . . . . . . . . . . . 1 . . . . . . . . . . . . . . . . . . . . . M Guard 2 | . . . . . . . . . . . . . . . . . . . . . . . . . . . . . . . . . . . . 2 Combat Programmer 1 | . . . . . . . . . . . . . . . . . . . . . . . . . . . . . . . . . . . . 1 Executioner 2 | . . . . . . . . . . . . . . . . . . . . . . . . . . . . . . . . . . 2 . . Decomposer 2 | . . . . . . . . . . . . . . . . . . . . . . . . . . . . . 2 . . . . . . . Tinkerer 1 | . . . . . . . . 1 . . . . . . . . . . . . . . . . . . . . . . . . . . . . Assembled 8 | . . . . 2 . . . . . . . . . . . . . . . . . . . . . . . . . . . . . . . 6 Surgeon 1 | . . . . . . . . . . . . 1 . . . . . . . . . . . . . . . . . . . . . . . . Wasp 3 | . . . . . . . . . . . . 3 . . . . . . . . . . . . . . . . . . . . . . . . Thug 5 | . . . 1 . . . . . . . . . . 2 . . 2 . . . . . . . . . . . . . . . . . . . Savage 1 | . . . . . . . . . . . . . . . . . 1 . . . . . . . . . . . . . . . . . . . Butcher 1 | . . . . . . . . . . . . . . . . . . . . . . 1 . . . . . . . . . . . . . . Martyr 2 | . . . . . . . . . . . . 2 . . . . . . . . . . . . . . . . . . . . . . . . Guerrilla 1 | . . . . . . . . . . . . . . . . . 1 . . . . . . . . . . . . . . . . . . . Best Kill Streak 17 | 3 3 . 3 3 6 3 . 4 . 1 4 1 2 3 2 2 13 5 1 . 12 . 3 . 4 . 5 . 1 2 5 10 8 3 8 17 Combat Bots Only 16 | . 2 . 2 3 4 1 . 4 . 1 4 1 1 3 1 1 3 4 1 . 11 . 2 . 4 . 5 . 1 2 4 8 8 3 5 16 Max Kills in Single Turn 16 | 1 1 . 2 2 1 1 1 1 . 1 2 1 1 2 1 1 16 5 1 . 5 1 1 . 2 . 3 . 1 2 3 4 6 3 4 8 Gunslinging . | . . . . . . . . . . . . . . . . . . . . . . . . . . . . . . . . . . . . . Exploded 6 | . . . 2 . . . . 1 . . 2 . . 1 . . 2 4 . . 4 . . . 2 . 3 . . 2 . 4 6 . 2 4 Melee 1 | . . . . . . . . . . 1 . . . . . . . . . . . . . . . . . . . . . . . . . . Uniques/NPCs Destroyed 1 | . . . . . . . . . . . . . . . . . . . . . . . . . . . . . . . . . . . . 1 MAIN.C Shell (-1/Command) Combat | -11 -10 -10 -9 -9 -8 -7 -7 -7 -7 -6 -6 -6 -6 -6 -6 -6 -6 -5 -5 -5 -5 -4 -4 -4 -4 -4 -4 -4 -3 -3 -3 -2 -2 -2 -1 -1 -------- Run | Yrd Mat Min Mat Min Mat Fac Low Low Zio Pro Fac Was Fac Ext Cet Arc Hub Fac Upp Upp War Pro Fac Was Fac Upp Upp Zhi Pro Res Qua Res Tes Sec Acc Com Hostile Shots Fired 1908 | . 94 . 55 70 96 41 . 9 . . 62 . 20 146 3 3 28 44 5 . 4 . 60 . 129 . 18 . 2 14 14 248 147 59 70 467 Missed 800 | . 31 . 18 21 35 22 . 2 . . 22 . 4 51 . 1 13 15 2 . . . 20 . 56 . 8 . 1 6 5 128 69 27 43 200 Hits 1108 | . 63 . 37 49 61 19 . 7 . . 40 . 16 95 3 2 15 29 3 . 4 . 40 . 73 . 10 . 1 8 9 120 78 32 27 267 Melee 6 | . . . . 2 . . . . . . . . . . . . . . . . . . . . . . . . . . . . . . . 4 Projectile 1102 | . 63 . 37 47 61 19 . 7 . . 40 . 16 95 3 2 15 29 3 . 4 . 40 . 73 . 10 . 1 8 9 120 78 32 27 263 AOE 24 | . . . . . . . . . . . . . . . . . . . . . . . . . 1 . . . . . . . . . . 23 Critical Strikes 56 | . 2 . 1 2 2 1 . . . . 3 . 1 1 2 1 . 1 1 . . . 2 . 5 . . . . . 1 4 4 2 4 16 Actively Blocked 27 | . . . . . . . . . . . . . . . . . . . . . . . . . 1 . . . . . 1 1 3 2 3 16 Part Disruptions 25 | . . . . . . . . . . . . . . . . . . . . . . . 1 . . . . . . . . 2 1 . 1 20 Actively Blocked 1 | . . . . . . . . . . . . . . . . . . . . . . . . . . . . . . . . 1 . . . . Damage Taken 19781 | . 850 . 478 637 781 229 . 105 . 13 723 . 301 1001 137 47 256 718 58 . 50 . 795 45 1479 . 152 . 24 289 160 1716 995 1587 762 5393 Core 2511 | . 191 . 78 73 202 12 . . . 13 90 . 37 58 29 . 27 65 . . 11 . 80 . 258 . 56 . . 48 24 64 45 575 170 305 Absorbed by Shields 3138 | . . . . . . . . . . . . . . 86 81 . . . . . 46 . . . . . . . . 56 16 391 408 40 48 1966 Redirected to Shielding 602 | . . . . . . . . . . . . . . 3 . . . . . . . . . . . . . . . 48 . 125 56 38 154 178 Ignored by Resistances 4110 | . . . . . . . . . . . . . . . . . . . . . . . . . . . . . . 68 18 167 403 70 28 3356 Regen/Repaired (Parts) 6069 | . 31 . 22 . 286 67 . . . . . . 193 . . . . . . . 73 . 286 . 58 . . . . 43 35 738 676 268 364 2929 Core Remaining (%) 65 | 100 . 23 . 62 63 . . . . 96 . . . . . . 71 . . . . 92 . . . . . . 65 . 68 . . 19 . . Volleys Fired 1169 | 14 79 . 72 43 89 19 13 21 . 5 39 68 32 59 8 48 23 26 7 2 14 8 40 . 49 6 5 . 18 34 23 58 50 26 53 118 Largest 4 | 2 2 . 2 2 2 2 1 1 . 1 3 3 3 3 1 1 2 3 2 1 2 1 3 . 3 2 1 . 3 4 1 2 2 2 2 4 Hottest 300 | 40 130 . 130 126 126 65 40 40 . 40 90 118 93 115 75 85 120 141 82 47 85 47 132 . 143 140 105 . 213 263 300 300 300 300 300 300 Shots Fired 1876 | 28 158 . 139 84 178 31 13 21 . 5 82 77 62 133 8 48 39 45 14 2 15 8 68 . 72 12 5 . 21 46 23 68 68 29 66 208 Gun 918 | 28 158 . 134 84 178 18 10 7 . . 44 6 33 34 . 1 30 23 7 . 1 5 14 . 18 5 . . . 4 . . 11 1 3 61 Cannon 785 | . . . . . . 13 3 7 . 5 31 71 29 93 3 47 9 21 7 2 2 3 54 . 49 7 3 . 21 41 23 44 34 24 40 99 Launcher 166 | . . . 5 . . . . 7 . . . . . 6 5 . . 1 . . 12 . . . 5 . 2 . . 1 . 24 23 4 23 48 Special 7 | . . . . . . . . . . . 7 . . . . . . . . . . . . . . . . . . . . . . . . . Kinetic 839 | 28 144 . . . . 31 13 14 . 5 65 12 46 124 . 1 37 38 14 2 1 8 54 . 37 5 . . 2 9 2 5 11 2 17 112 Thermal 824 | . 14 . 134 84 178 . . . . . 10 65 16 3 . 34 2 6 . . . . . . 30 7 3 . 19 32 21 35 34 23 26 48 Explosive 45 | . . . 5 . . . . 7 . . 7 . . . . . . 1 . . 12 . . . 2 . 2 . . 1 . 7 1 . . . Electromagnetic 144 | . . . . . . . . . . . . . . 6 8 13 . . . . . . . . 3 . . . . . . 17 22 4 23 48 Entropic 24 | . . . . . . . . . . . . . . . . . . . . . 2 . 14 . . . . . . 4 . 4 . . . . Robot Hit Streak 25 | 4 18 . 23 9 14 3 6 6 . . 16 18 7 10 5 11 8 8 4 . 7 12 18 . 4 7 4 . 5 8 4 8 8 3 7 25 Robot Miss Streak 13 | 2 5 . 8 6 5 2 2 1 . . 3 3 5 5 . 3 1 3 3 . . . 2 . 2 1 . . 3 3 2 6 2 3 9 13 Penetration Max 2 | . . . . . . . . . . . . . 1 1 . . . . . . . . 1 . . . . . . . 2 . 1 2 2 2 Secondary Targets 5 | . . . . 2 3 . . . . . . . . . . . . . . . . . . . . . . . . . . . . . . . Max Gunslinging Chain 1 | . . . . 1 1 . . . . . . . . . . . . . . . . . . . . . . . . . . . . . . . Shots Hit Robots 1160 | 17 112 . 93 52 110 24 7 6 . 2 50 59 22 89 5 37 22 32 13 . 4 5 49 . 30 8 5 6 4 24 8 35 34 10 28 158 Core Hits 943 | 4 52 . 83 28 41 6 3 8 . . 23 29 10 32 10 15 35 15 3 . 42 3 18 . 29 4 5 1 3 8 4 87 88 9 70 175 Critical Kills 52 | . 1 . . . . 1 . . . . . . 1 1 . . 3 1 1 . . . . . . 1 . . . 1 4 2 3 4 16 12 Critical Parts Destroyed 91 | . 1 . . . . 2 . . . . 3 . . 4 . . 4 3 1 . . . 6 . 2 . . 3 . . 6 6 . 6 19 25 Critical Strikes 187 | . 2 . 2 5 8 3 . . . . 3 . 1 12 . . 7 6 3 . 1 . 17 . 5 1 . 3 . 1 10 8 3 10 35 41 Burn 15 | . . . 2 5 8 . . . . . . . . . . . . . . . . . . . . . . . . . . . . . . . Meltdown 2 | . . . . . . . . . . . . . 1 . . . . . . . . . . . . 1 . . . . . . . . . . Destroy 121 | . 2 . . . . . . . . . . . . 2 . . 7 3 . . . . . . . . . . . 1 9 8 3 10 35 41 Blast 21 | . . . . . . . . . . . . . . 7 . . . 2 1 . . . 8 . 3 . . . . . . . . . . . Smash 24 | . . . . . . 3 . . . . 3 . . 3 . . . 1 2 . . . 6 . 2 . . 3 . . 1 . . . . . Sunder 4 | . . . . . . . . . . . . . . . . . . . . . 1 . 3 . . . . . . . . . . . . . Melee Attacks 343 | . . . . . . 63 1 2 . 5 23 . 7 5 . . 4 36 3 3 1 1 46 . 48 1 4 6 . . 13 16 15 6 26 8 Impact 262 | . . . . . . 63 1 2 . 5 23 . 7 5 . . 4 36 3 3 1 1 46 . 48 1 4 6 . . 3 . . . . . Slashing 81 | . . . . . . . . . . . . . . . . . . . . . . . . . . . . . . . 10 16 15 6 26 8 Piercing . | . . . . . . . . . . . . . . . . . . . . . . . . . . . . . . . . . . . . . Sneak Attacks 53 | . . . . . . 10 . . . 2 2 . 1 2 . . . 4 . . . . 7 . 8 . . . . . 1 1 2 2 6 5 Combat Hostiles 2 | . . . . . . . . . . 2 . . . . . . . . . . . . . . . . . . . . . . . . . . Follow-up Attacks . | . . . . . . . . . . . . . . . . . . . . . . . . . . . . . . . . . . . . . Damage Inflicted 71464 | 177 1010 . 1886 907 2073 1311 117 548 . 172 2073 2054 691 3393 341 1288 2744 1571 521 . 3187 134 2578 . 2580 259 858 605 156 1206 2085 6780 5082 2543 3872 16662 Guns 11067 | 177 1010 . 1440 891 2073 138 117 97 . . 553 59 381 552 . 23 592 385 128 . . 134 250 . 239 79 . . . 55 . . 177 23 24 1470 Cannons 29251 | . . . . . . 119 . . . . 438 1995 200 2247 108 1265 29 313 143 . 62 . 1444 . 360 180 37 . 156 837 2000 2558 1193 1914 1556 10097 Explosions 22802 | . . . 446 . . . . 451 . . 627 . . 192 233 . 2123 386 . . 3125 . . . 1196 . 598 . . 314 . 4037 3384 291 1196 4203 Melee 8164 | . . . . . . 1054 . . . 172 380 . 110 402 . . . 481 250 . . . 884 . 785 . 223 605 . . 85 160 328 257 1096 892 Ramming 105 | . . . . 16 . . . . . . . . . . . . . 6 . . . . . . . . . . . . . 25 . 58 . . Kinetic 13090 | 177 885 . . . . 257 117 97 . . 991 224 519 2767 . 23 592 698 271 . . 134 918 . 564 79 . . 42 171 . 136 177 37 240 2974 Thermal 27408 | . 125 . 1440 891 2073 . . . . . . 1830 62 32 . 884 501 . . . . . . . 35 180 37 . 114 652 2000 2293 1673 1900 1421 9265 Explosive 9664 | . . . 446 . . . . 451 . . 627 . . . . . . 386 . . 3125 . . . 794 . 598 . . 314 . 2346 564 13 . . Electromagnetic 11922 | . . . . . . . . . . . . . . 192 341 381 1651 . . . . . . . 402 . . . . . . 1691 2340 278 1115 3531 Impact 5431 | . . . . . . 1054 . . . 172 380 . 110 402 . . . 481 250 . . . 884 . 785 . 223 605 . . 85 . . . . . Slashing 2808 | . . . . . . . . . . . 75 . . . . . . . . . . . . . . . . . . . . 160 328 257 1096 892 Piercing . | . . . . . . . . . . . . . . . . . . . . . . . . . . . . . . . . . . . . . Entropic 1036 | . . . . . . . . . . . . . . . . . . . . . 62 . 776 . . . . . . 69 . 129 . . . . Highest Corruption 59 | . . . . 7 . 5 . . . . 1 1 2 . . 9 21 . . . . . 7 7 7 7 7 7 7 . . 8 9 38 6 59 Average Corruption 6 | . . . . 5 . 2 . . . . 1 1 1 . . 5 8 . . . . . 4 7 7 7 7 7 7 . . 3 5 5 4 20 Corruption Purged 16 | . . . . . . 5 . . . . . . 2 . . 9 . . . . . . . . . . . . . . . . . . . . Corruption Blocked . | . . . . . . . . . . . . . . . . . . . . . . . . . . . . . . . . . . . . . Effects 326 | . . . . 16 . 12 . . . . 3 3 4 . . 5 . . . . . . 31 3 64 9 7 6 10 . . 17 28 16 16 76 Message Errors 69 | . . . . 2 . 2 . . . . 2 . . . . 1 . . . . . . 10 1 20 2 2 . 3 . . 6 5 3 4 6 Matter Fused 72 | . . . . 5 . 2 . . . . . . 1 . . 2 . . . . . . 6 1 11 2 3 4 1 . . 4 7 6 3 14 Heat Flow Errors 36 | . . . . 3 . 5 . . . . . 2 . . . 1 . . . . . . 3 1 7 1 . 1 1 . . 1 3 . . 7 Energy Discharges 36 | . . . . 1 . . . . . . . . 1 . . . . . . . . . 1 . 7 1 1 1 1 . . . 4 3 2 13 Parts Rejected 2 | . . . . . . . . . . . . . . . . . . . . . . . 1 . . . . . . . . . . . . 1 Parts Fused 3 | . . . . . . . . . . . . . . . . 1 . . . . . . . . . . . . . . . . 1 . 1 . Data Loss (minor) 43 | . . . . 1 . 2 . . . . . 1 . . . . . . . . . . 5 . 12 1 . . 3 . . 5 5 . 3 5 Data Loss (major) 13 | . . . . 1 . 1 . . . . . . 1 . . . . . . . . . . . 3 . . . . . . . 1 2 2 2 Misfires 17 | . . . . . . . . . . . . . 1 . . . . . . . . . 3 . 4 1 . . 1 . . . 2 1 1 3 Alerts 7 | . . . . 1 . . . . . . . . . . . . . . . . . . 2 . . 1 1 . . . . . . 1 . 1 Misdirections 1 | . . . . . . . . . . . . . . . . . . . . . . . . . . . . . . . . . . . . 1 Weapon Failures 27 | . . . . 2 . . . . . . 1 . . . . . . . . . . . . . . . . . . . . 1 . . . 23 Overload Shots . | . . . . . . . . . . . . . . . . . . . . . . . . . . . . . . . . . . . . . Overflow Damage 11483 | . . . . . . 664 . 85 . 137 257 6 113 407 . 60 107 232 170 . 57 . 713 . 530 35 250 470 24 120 765 1696 164 806 1055 2560 Projectiles 5653 | . . . . . . . . . . . 19 6 33 10 . 60 . . . . . . 77 . 29 35 . . 24 44 680 1300 . 639 665 2032 Explosions 886 | . . . . . . . . 85 . . 34 . . . . . 107 . . . 57 . . . 40 . 73 . . 76 . 266 22 . 36 90 Melee 4944 | . . . . . . 664 . . . 137 204 . 80 397 . . . 232 170 . . . 636 . 461 . 177 470 . . 85 130 142 167 354 438 Knockbacks 66 | . . . . . . 7 . . . . 6 . 2 3 . . . 6 1 . . . 18 . 6 . . . . . 1 3 . . 5 8 Impact 25 | . . . . . . 6 . . . . 2 . 1 1 . . . 2 . . . . 8 . 4 . . . . . 1 . . . . . Kinetic 37 | . . . . . . 1 . . . . 3 . . 1 . . . 4 1 . . . 9 . 2 . . . . . . 3 . . 5 8 Secondary 4 | . . . . . . . . . . . 1 . 1 1 . . . . . . . . 1 . . . . . . . . . . . . . Self-Inflicted Damage 993 | . . . 31 27 . . . . . . . . . . . . 88 3 . . . . . . 84 . . . . . . 191 51 18 23 477 Shots 62 | . . . 2 1 . . . . . . . . . . . . 1 . . . . . . . 1 . . . . . . 14 3 2 2 36 Rammed 2 | . . . . 1 . . . . . . . . . . . . . 1 . . . . . . . . . . . . . . . . . . Targets Rammed 5 | . . . . 1 . . . . . . . . . . . . . 1 . . . . . . . . . . . . . 2 . 1 . . Kicked 3 | . . . . . . . . . . . . . . . . . . . . . . . . . . . . . . . . 2 . 1 . . Crushed . | . . . . . . . . . . . . . . . . . . . . . . . . . . . . . . . . . . . . . Highest Temperature 452 | . 207 . 162 210 273 241 18 124 . . 419 210 365 316 60 261 39 183 108 2 27 11 287 89 265 270 48 211 261 407 252 297 302 452 232 387 Average Temperature 75 | . 47 . 33 59 61 81 10 39 . . 123 74 127 59 20 73 15 19 30 1 4 6 91 53 83 72 30 110 67 82 111 74 79 120 63 113 Received Heat Transfer 2577 | . 522 . 87 215 315 36 . . . . 207 . 162 170 . . 57 90 45 . . . 42 . 278 . . . . 15 2 40 75 . 8 211 Effects 16 | . . . . . . . . . . . 3 . 3 1 . 4 . . . . . . 1 . 1 . . . . . . 1 1 1 . . Shutdowns 1 | . . . . . . . . . . . 1 . . . . . . . . . . . . . . . . . . . . . . . . . Energy Bleed 6 | . . . . . . . . . . . . . . 1 . 1 . . . . . . 1 . 1 . . . . . . 1 . 1 . . Interference 8 | . . . . . . . . . . . 1 . 3 . . 3 . . . . . . . . . . . . . . . . 1 . . . Damage (minor) 1 | . . . . . . . . . . . 1 . . . . . . . . . . . . . . . . . . . . . . . . . Siege Activations . | . . . . . . . . . . . . . . . . . . . . . . . . . . . . . . . . . . . . . Martial Activations . | . . . . . . . . . . . . . . . . . . . . . . . . . . . . . . . . . . . . . Shielding Activations . | . . . . . . . . . . . . . . . . . . . . . . . . . . . . . . . . . . . . . Robots Disrupted 1 | . . . . . . . . . . . . . . . . . . . . . . . . . . . . . . . . 1 . . . . Combat Hostiles 1 | . . . . . . . . . . . . . . . . . . . . . . . . . . . . . . . . 1 . . . . Robots Corrupted 72 | . . . . . . 7 . . . 1 3 . 1 2 . 1 1 4 1 . . . 6 . 6 . 1 . . . 1 6 9 2 5 15 Combat Hostiles 39 | . . . . . . . . . . 1 . . . . . . 1 . . . . . . . 2 . 1 . . . . 5 8 2 5 14 Parts Fried 160 | . . . . . . 13 . . . . 3 . 3 3 1 5 2 12 . . . . 10 . 15 . 1 1 . . 1 11 25 12 9 33 Impact Corruptions 109 | . . . . . . 19 . . . 5 6 . 4 12 . . . 7 4 . . . 15 . 13 . 7 14 . . 3 . . . . . Robots Melted 6 | . . . . . 4 . . . . . . . 1 . . . . . . . . . . . . 1 . . . . . . . . . . Combat Hostiles 5 | . . . . . 4 . . . . . . . . . . . . . . . . . . . . 1 . . . . . . . . . . Parts Melted 33 | . . . 5 4 17 . . . . . . 1 2 1 1 . . . . . . . . . . . . . . . . . . . 1 1 Heat Transferred 15491 | . 160 . 2650 2330 4699 . . . . . . 2220 74 37 . 1073 387 . . . . . . . 37 185 37 . 111 666 . . 250 . 100 475 Parts Sabotaged . | . . . . . . . . . . . . . . . . . . . . . . . . . . . . . . . . . . . . . Parts Stolen . | . . . . . . . . . . . . . . . . . . . . . . . . . . . . . . . . . . . . . Parts Stripped . | . . . . . . . . . . . . . . . . . . . . . . . . . . . . . . . . . . . . . Power Chain Reactions 21 | . . . . . . . . . . . . . . 1 . . 2 . . . . . . . . . . . . . . . 5 . 3 10 Alert | -11 -10 -10 -9 -9 -8 -7 -7 -7 -7 -6 -6 -6 -6 -6 -6 -6 -6 -5 -5 -5 -5 -4 -4 -4 -4 -4 -4 -4 -3 -3 -3 -2 -2 -2 -1 -1 ------- Run | Yrd Mat Min Mat Min Mat Fac Low Low Zio Pro Fac Was Fac Ext Cet Arc Hub Fac Upp Upp War Pro Fac Was Fac Upp Upp Zhi Pro Res Qua Res Tes Sec Acc Com Maximum Alert Level 5 | . . . 1 . 1 . . . . . 1 . . 2 2 1 5 3 . . . . 1 . 1 . . . . . 1 3 3 3 3 5 Low Security (%) 65 | 100 100 100 92 100 97 100 . . . . 78 100 100 91 . 33 17 . . . . . 93 100 94 . . . . 100 74 26 . . . . Level 1 8 | . . . 7 . 2 . . . . . 21 . . 2 13 66 6 26 . . . . 6 . 5 . . . . . 25 34 1 . . . Level 2 15 | . . . . . . . . . . . . . . 6 86 . 14 40 . . . . . . . . . . . . . 20 76 61 61 35 Level 3 8 | . . . . . . . . . . . . . . . . . 54 32 . . . . . . . . . . . . . 18 21 38 38 14 Level 4 . | . . . . . . . . . . . . . . . . . 2 . . . . . . . . . . . . . . . . . . 18 Level 5 1 | . . . . . . . . . . . . . . . . . 4 . . . . . . . . . . . . . . . . . . 31 High Security . | . . . . . . . . . . . . . . . . . . . . . . . . . . . . . . . . . . . . . Max Security . | . . . . . . . . . . . . . . . . . . . . . . . . . . . . . . . . . . . . . Peak Influence 1740 | 10 187 22 221 102 209 85 . . . . 350 113 67 639 544 348 1646 1012 . . . . 223 46 223 . . . . 80 260 1060 907 985 1094 1740 Initial 801 | . . 15 5 23 1 58 . . . . 150 113 . . 352 195 36 801 . . . . . . 12 . . . . . . 132 582 500 584 697 Average 247 | 1 74 1 68 33 85 30 . . . . 175 37 13 83 458 226 693 559 . . . . 89 14 68 . . . . 10 124 411 622 681 651 1099 Influence Increases 17620 | 15 471 22 748 450 665 516 . 90 . 12 735 48 203 1332 342 285 1840 881 20 . 380 31 738 85 826 5 120 10 30 202 545 1428 1114 793 1058 1580 Destroy 0b10 Robot/C 7000 | . 220 20 360 300 440 20 . 80 . . 240 . 40 640 160 80 480 260 20 . 300 20 160 20 200 . 100 . 20 60 120 600 620 160 440 820 Destroy 0b10 Robot/NC 960 | 15 35 . 80 25 35 65 . . . 10 15 . 20 50 10 45 70 55 . . 5 . 45 . 40 5 10 10 . 15 10 105 25 5 85 70 Destroy Leader 1164 | . 58 . 128 30 104 10 . 10 . . 54 . 4 56 . . 80 58 . . . 10 52 . 30 . 10 . 10 20 12 96 82 30 76 144 Allied During Kill 1558 | . . 2 27 . 7 . . . . 2 . . . 423 170 111 593 115 . . 60 1 . . . . . . . . . . . . . 47 Trap Triggered on 0b10 20 | . . . . 20 . . . . . . . . . . . . . . . . . . . . . . . . . . . . . . . . Successful Hack 788 | . 23 . 44 . 16 116 . . . . 50 . 67 15 . . 40 63 . . . . 40 . 97 . . . . 28 37 12 42 23 70 5 Disable Machine 1260 | . . . 45 . 45 75 . . . . 45 . 15 30 . 45 225 30 . . . . 45 . 75 . . . . 15 150 105 45 180 30 60 Destroy Structure 2845 | . . . 34 . 3 50 . . . . 76 48 27 28 2 4 232 120 . . . . 126 50 204 . . . . 64 186 405 270 305 327 284 Advance Influence 150 | . . . . . . . . . . . 150 . . . . . . . . . . . . . . . . . . . . . . . . . Partial Spotted 270 | . . . . . . 90 . . . . 45 . . 15 . . 15 30 . . . . 30 15 15 . . . . . . . . . . 15 Lose Combat Pursuer 1605 | . 135 . 30 75 15 90 . . . . 60 . 30 75 . . 105 150 . . 15 . 240 . 165 . . . . . 30 105 30 90 30 135 Influence Decreases 15917 | 15 431 48 702 506 541 559 85 10 80 12 412 371 203 701 485 669 308 2091 218 194 94 350 739 67 665 184 110 20 30 202 308 629 1260 708 943 967 Entered New Map 4314 | . . 25 9 37 3 70 32 . 80 . . 210 . . 279 293 68 835 158 44 34 320 1 . 6 67 . 10 . . . 105 454 390 391 393 Time Decay 9129 | 15 371 23 454 399 483 489 53 10 . 5 392 141 146 497 206 356 190 526 60 150 60 30 463 10 469 117 110 10 30 202 308 514 506 318 542 474 Lost Part 354 | . 60 . 10 70 54 . . . . . . . . 10 . . 10 20 . . . . 10 . 40 . . . . . . . . . 10 60 Lost Ally 571 | . . . 40 . 1 . . . . 7 20 20 12 194 . 20 40 110 . . . . . 57 . . . . . . . 10 . . . 40 Purge Threat 1549 | . . . 189 . . . . . . . . . 45 . . . . 600 . . . . 265 . 150 . . . . . . . 300 . . . Squads Dispatched 105 | . 1 1 2 2 3 8 . . . . 5 . 3 4 . . 7 12 . . . . 9 . 10 . . . . 5 3 6 7 4 5 8 Investigation 26 | . . 1 1 . . 3 . . . . . . 1 3 . . 1 3 . . . . 3 . 6 . . . . 3 . . . . . 1 Extermination 36 | . . . . . . 4 . . . . 3 . 1 . . . 1 3 . . . . 3 . 4 . . . . . 2 4 3 2 3 3 Reinforcement 30 | . 1 . 1 1 3 1 . . . . 2 . 1 1 . . 2 2 . . . . 3 . . . . . . 2 1 2 3 2 1 1 Assault 13 | . . . . 1 . . . . . . . . . . . . 3 4 . . . . . . . . . . . . . . 1 . 1 3 Garrison . | . . . . . . . . . . . . . . . . . . . . . . . . . . . . . . . . . . . . . Intercept . | . . . . . . . . . . . . . . . . . . . . . . . . . . . . . . . . . . . . . Searches Triggered . | . . . . . . . . . . . . . . . . . . . . . . . . . . . . . . . . . . . . . Construction Impeded 7 | . . . . 1 . 1 . . . . . . . 1 . . 1 . . . . . 2 . . . . . . . . . . . 1 . Haulers Reinforced 5 | . . . . . . . . . . . 1 . 1 . . . 1 . . . . . . . . . . . . 1 . 1 . . . . Active Scanning Responses . | . . . . . . . . . . . . . . . . . . . . . . . . . . . . . . . . . . . . . Cargo Convoy Interrupts . | . . . . . . . . . . . . . . . . . . . . . . . . . . . . . . . . . . . . . Stealth | -11 -10 -10 -9 -9 -8 -7 -7 -7 -7 -6 -6 -6 -6 -6 -6 -6 -6 -5 -5 -5 -5 -4 -4 -4 -4 -4 -4 -4 -3 -3 -3 -2 -2 -2 -1 -1 --------- Run | Yrd Mat Min Mat Min Mat Fac Low Low Zio Pro Fac Was Fac Ext Cet Arc Hub Fac Upp Upp War Pro Fac Was Fac Upp Upp Zhi Pro Res Qua Res Tes Sec Acc Com Distress Signals 38 | . 4 . 4 . 3 . . . . 1 2 . . 2 2 . 1 2 . . . . 9 . . . . . . 4 1 . . 1 1 1 Communications Jammed 66 | . . . . . . . . . . . . . . . . . . . . . . . . . . . . . . . . 10 17 19 6 14 Distress Signals 65 | . . . . . . . . . . . . . . . . . . . . . . . . . . . . . . . . 9 17 19 6 14 Times Spotted 572 | . 24 1 42 24 35 17 . 2 . 1 18 6 7 32 10 21 15 23 1 . 8 2 27 6 29 . 5 . 1 12 14 43 40 19 28 59 Peak Tracking Total 15 | . 6 1 5 5 5 2 . 4 . 1 4 3 2 4 5 2 15 5 1 . 12 4 7 4 7 . 5 . 1 3 6 5 8 10 5 14 Tactical Retreats 64 | . 5 . 2 3 1 5 . . . . 3 . 1 2 . . 3 4 . . 1 . 9 . 5 . . . . . 2 4 2 4 1 7 Traps | -11 -10 -10 -9 -9 -8 -7 -7 -7 -7 -6 -6 -6 -6 -6 -6 -6 -6 -5 -5 -5 -5 -4 -4 -4 -4 -4 -4 -4 -3 -3 -3 -2 -2 -2 -1 -1 ------- Run | Yrd Mat Min Mat Min Mat Fac Low Low Zio Pro Fac Was Fac Ext Cet Arc Hub Fac Upp Upp War Pro Fac Was Fac Upp Upp Zhi Pro Res Qua Res Tes Sec Acc Com Traps Triggered 35 | . . . . 1 . 6 . . . . 2 . 3 6 . . . 3 . . . . 2 . 4 . . . . 2 . 1 1 . 3 1 Indirectly 3 | . . . . . . . . . . . . . . 2 . . . . . . . . . . . . . . . . . . . . . 1 Trap Hack Attempts . | . . . . . . . . . . . . . . . . . . . . . . . . . . . . . . . . . . . . . Triggered . | . . . . . . . . . . . . . . . . . . . . . . . . . . . . . . . . . . . . . Disarmed . | . . . . . . . . . . . . . . . . . . . . . . . . . . . . . . . . . . . . . Reprogrammed . | . . . . . . . . . . . . . . . . . . . . . . . . . . . . . . . . . . . . . Reused 2 | . . . . 2 . . . . . . . . . . . . . . . . . . . . . . . . . . . . . . . . Traps Extracted . | . . . . . . . . . . . . . . . . . . . . . . . . . . . . . . . . . . . . . Installed 4 | . . . . 4 . . . . . . . . . . . . . . . . . . . . . . . . . . . . . . . . Triggered 2 | . . . . 2 . . . . . . . . . . . . . . . . . . . . . . . . . . . . . . . . Most Traps Carried 4 | . . 4 4 4 . . . . . . . . . . . . . . . . . . . . . . . . . . . . . . . . Machines | -11 -10 -10 -9 -9 -8 -7 -7 -7 -7 -6 -6 -6 -6 -6 -6 -6 -6 -5 -5 -5 -5 -4 -4 -4 -4 -4 -4 -4 -3 -3 -3 -2 -2 -2 -1 -1 ---------- Run | Yrd Mat Min Mat Min Mat Fac Low Low Zio Pro Fac Was Fac Ext Cet Arc Hub Fac Upp Upp War Pro Fac Was Fac Upp Upp Zhi Pro Res Qua Res Tes Sec Acc Com Machines Disabled 91 | . . . 3 . 3 5 . . . . 3 . 1 3 . 3 15 2 . . 2 . 3 . 5 . . . . 1 11 7 3 15 2 4 Max in Single Turn 7 | . . . 1 . 1 1 . . . . 1 . 1 1 . 1 7 2 . . 1 . 1 . 2 . . . . 1 2 2 1 3 1 2 Garrison Access 15 | . . . . . . 2 . . . . 1 . 2 . . . 1 2 . . . . 2 . 2 . . . . . 1 1 1 . . . Network Hub 2 | . . . . . . . . . . . . . . . . . 2 . . . . . . . . . . . . . . . . . . . Machines Repaired . | . . . . . . . . . . . . . . . . . . . . . . . . . . . . . . . . . . . . . Machines Dismantled . | . . . . . . . . . . . . . . . . . . . . . . . . . . . . . . . . . . . . . Machines Sabotaged . | . . . . . . . . . . . . . . . . . . . . . . . . . . . . . . . . . . . . . Overloaded Fab Kills . | . . . . . . . . . . . . . . . . . . . . . . . . . . . . . . . . . . . . . Hacking | -11 -10 -10 -9 -9 -8 -7 -7 -7 -7 -6 -6 -6 -6 -6 -6 -6 -6 -5 -5 -5 -5 -4 -4 -4 -4 -4 -4 -4 -3 -3 -3 -2 -2 -2 -1 -1 --------- Run | Yrd Mat Min Mat Min Mat Fac Low Low Zio Pro Fac Was Fac Ext Cet Arc Hub Fac Upp Upp War Pro Fac Was Fac Upp Upp Zhi Pro Res Qua Res Tes Sec Acc Com Machines Accessed 209 | . 10 1 16 . 6 28 . 2 1 . 7 . 14 9 1 . 7 17 . 1 1 . 21 . 20 2 2 4 . 8 6 4 4 4 8 5 Terminals 119 | . 7 . 11 . 4 17 . 1 . . 4 . 8 9 1 . 6 10 . . . . 7 . 9 . 1 . . 4 3 2 2 4 5 4 Fabricators 16 | . . . . . . 2 . . . . . . . . . . . 3 . . . . 4 . 4 . . . . 2 . . . . 1 . Repair Stations 15 | . 1 . 1 . 1 2 . . . . . . 1 . . . . . . . . . 3 . 1 . . . . 1 . 1 1 . 1 1 Recycling Units 19 | . 2 . 2 . 1 1 . . . . . . 3 . . . . 2 . . . . 4 . 3 . . . . 1 . . . . . . Scanalyzers 10 | . . . 2 . . 2 . . . . 2 . . . . . . . . . . . 1 . 1 . . . . . 2 . . . . . Garrison Access 18 | . . . . . . 4 . . . . 1 . 2 . . . 1 2 . . . . 2 . 2 . . . . . 1 1 1 . 1 . Total Hacks 680 | . 29 1 40 . 19 60 . 2 4 . 16 . 35 29 1 . 19 77 . 1 1 . 93 . 85 8 2 17 . 34 20 12 15 14 29 17 Successful 380 | . 14 1 19 . 13 20 . 2 4 . 12 . 24 8 . . 10 40 . 1 1 . 70 . 67 8 2 17 . 17 7 3 7 3 8 2 Failed 297 | . 14 . 21 . 6 40 . . . . 4 . 11 21 1 . 9 36 . . . . 22 . 18 . . . . 17 13 9 8 11 21 15 Catastrophic 42 | . 2 . 3 . 1 10 . . . . . . 1 . 1 . . 2 . . . . 1 . 3 . . . . 5 . 3 . 2 4 4 Database Lockouts 3 | . 1 . . . . . . . . . . . . . . . . 1 . . . . 1 . . . . . . . . . . . . . Manual 256 | . 15 . 10 . 12 20 . . . . 6 . 13 4 1 . 14 33 . . . . 54 . 41 . . . . 8 5 2 . 3 6 9 Terminals 453 | . 23 . 29 . 14 39 . 1 . . 10 . 25 29 1 . 17 59 . . . . 61 . 52 . 1 . . 17 9 6 8 14 22 16 Fabricators 56 | . . . . . . 4 . . . . . . . . . . . 7 . . . . 11 . 22 . . . . 11 . . . . 1 . Repair Stations 46 | . 2 . 3 . 4 4 . . . . . . 4 . . . . . . . . . 11 . 4 . . . . 4 . 2 5 . 2 1 Recycling Units 33 | . 4 . 4 . 1 2 . . . . . . 4 . . . . 8 . . . . 4 . 4 . . . . 2 . . . . . . Scanalyzers 26 | . . . 4 . . 5 . . . . 5 . . . . . . . . . . . 4 . 1 . . . . . 7 . . . . . Garrison Access 32 | . . . . . . 6 . . . . 1 . 2 . . . 2 3 . . . . 2 . 2 . . . . . 4 4 2 . 4 . Terminal Hacks 202 | . 7 1 9 . 3 7 . 2 4 . 3 . 13 7 . . 3 23 . 1 1 . 29 . 37 8 2 17 . 10 3 . 4 2 4 2 Record 16 | . . . . . . . . 1 . . . . . . . . . . . . . . . . . 7 1 5 . . 1 . 1 . . . Part Schematic 19 | . 2 . . . . . . . 4 . . . . . . . . 3 . . . . 1 . 5 . . 4 . . . . . . . . Robot Analysis 6 | . 1 . . . . . . . . . . . . . . . . . . . . . . . 1 . . 4 . . . . . . . . Prototype ID Bank 22 | . 1 . 3 . 1 2 . . . . . . 2 1 . . . 1 . . . . 2 . 4 . . 4 . 1 . . . . . . Open Door 18 | . . 1 . . . . . 1 . . 1 . . 5 . . . . . 1 1 . . . . 1 1 . . 1 . . . 2 2 1 Branch Access Points 8 | . . . . . . 1 . . . . . . 1 . . . . 1 . . . . 1 . 1 . . . . 1 1 . . . 1 . Machine Index 2 | . . . . . . . . . . . . . . . . . . . . . . . 1 . 1 . . . . . . . . . . . Terminal Index 5 | . . . . . . 1 . . . . . . 1 . . . . 1 . . . . 1 . . . . . . 1 . . . . . . Fabricator Index 3 | . . . . . . . . . . . . . . . . . . 1 . . . . 1 . . . . . . 1 . . . . . . Repair Station Index 1 | . . . . . . . . . . . . . . . . . . . . . . . . . . . . . . 1 . . . . . . Scanalyzer Index 1 | . . . . . . . . . . . . . . . . . . . . . . . 1 . . . . . . . . . . . . . Alert Level 5 | . 1 . . . . . . . . . . . . . . . . . . . . . 2 . 2 . . . . . . . . . . . Unreport Threat 14 | . . . 3 . . . . . . . . . 1 . . . . 4 . . . . 3 . 1 . . . . . . . 2 . . . Locate Traps 35 | . 1 . 1 . 1 1 . . . . . . 4 1 . . 2 5 . . . . 6 . 8 . . . . 3 1 . . . . 1 Transport Status 1 | . . . . . . . . . . . 1 . . . . . . . . . . . . . . . . . . . . . . . . . Recall Investigation 5 | . . . . . . . . . . . . . . . . . . 1 . . . . 1 . 2 . . . . 1 . . . . . . Recall Extermination 7 | . . . . . . . . . . . . . . . . . . 3 . . . . 1 . 3 . . . . . . . . . . . Hauler Manifests 3 | . . . 1 . . . . . . . 1 . . . . . . . . . . . . . . . . . . . . . . . 1 . Registered Components 6 | . 1 . . . 1 . . . . . . . . . . . . 1 . . . . 1 . 1 . . . . . . . 1 . . . Registered Prototypes 3 | . . . . . . . . . . . . . . . . . . 1 . . . . 1 . 1 . . . . . . . . . . . Zone Layout 22 | . . . 1 . . 2 . . . . . . 4 . . . 1 1 . . . . 6 . 7 . . . . . . . . . . . Fabricator Hacks 29 | . . . . . . 1 . . . . . . . . . . . 5 . . . . 6 . 13 . . . . 3 . . . . 1 . Network Status 2 | . . . . . . 1 . . . . . . . . . . . . . . . . . . . . . . . . . . . . 1 . Load Schematic 16 | . . . . . . . . . . . . . . . . . . 3 . . . . 4 . 7 . . . . 2 . . . . . . Build 11 | . . . . . . . . . . . . . . . . . . 2 . . . . 2 . 6 . . . . 1 . . . . . . Repair Station Hacks 33 | . 2 . 2 . 4 3 . . . . . . 4 . . . . . . . . . 10 . 2 . . . . 2 . 1 2 . 1 . Scan Component 18 | . 1 . 1 . 2 2 . . . . . . 2 . . . . . . . . . 5 . 1 . . . . 1 . 1 1 . 1 . Repair 15 | . 1 . 1 . 2 1 . . . . . . 2 . . . . . . . . . 5 . 1 . . . . 1 . . 1 . . . Recycling Unit Hacks 17 | . 2 . 2 . 1 1 . . . . . . 2 . . . . 1 . . . . 4 . 3 . . . . 1 . . . . . . Retrieve Components 17 | . 2 . 2 . 1 1 . . . . . . 2 . . . . 1 . . . . 4 . 3 . . . . 1 . . . . . . Scanalyzer 18 | . . . 4 . . 2 . . . . 5 . . . . . . . . . . . 4 . 1 . . . . . 2 . . . . . Insert Component 11 | . . . 2 . . 1 . . . . 3 . . . . . . . . . . . 2 . 1 . . . . . 2 . . . . . Analyze 7 | . . . 2 . . 1 . . . . 2 . . . . . . . . . . . 2 . . . . . . . . . . . . . Garrison Access Hacks 16 | . . . . . . 2 . . . . 1 . 2 . . . 1 2 . . . . 2 . 2 . . . . . 1 1 1 . 1 . Unlock Access 1 | . . . . . . . . . . . . . . . . . . . . . . . . . . . . . . . . . . . 1 . Seal Access 15 | . . . . . . 2 . . . . 1 . 2 . . . 1 2 . . . . 2 . 2 . . . . . 1 1 1 . . . Unauthorized Hacks 65 | . 3 . 2 . 5 4 . . . . 3 . 3 1 . . 6 9 . . . . 15 . 9 . . . . 1 1 1 . 1 1 . Terminals 55 | . 3 . 2 . 5 4 . . . . 3 . 3 1 . . 6 7 . . . . 11 . 5 . . . . 1 1 1 . 1 1 . Track 9 | . . . . . . . . . . . . . . . . . 5 1 . . . . 3 . . . . . . . . . . . . . Assimilate 12 | . . . . . . 1 . . . . . . 2 1 . . . 4 . . . . 1 . 1 . . . . 1 . 1 . . . . Botnet 25 | . 2 . 1 . 3 2 . . . . 2 . 1 . . . 1 1 . . . . 5 . 4 . . . . . 1 . . 1 1 . Disrupt 2 | . . . . . 1 . . . . . . . . . . . . . . . . . 1 . . . . . . . . . . . . . Operators 7 | . 1 . 1 . 1 1 . . . . 1 . . . . . . 1 . . . . 1 . . . . . . . . . . . . . Fabricators 10 | . . . . . . . . . . . . . . . . . . 2 . . . . 4 . 4 . . . . . . . . . . . Prioritize 6 | . . . . . . . . . . . . . . . . . . 1 . . . . 2 . 3 . . . . . . . . . . . Recompile 4 | . . . . . . . . . . . . . . . . . . 1 . . . . 2 . 1 . . . . . . . . . . . Repair Stations . | . . . . . . . . . . . . . . . . . . . . . . . . . . . . . . . . . . . . . Recycling Units . | . . . . . . . . . . . . . . . . . . . . . . . . . . . . . . . . . . . . . Scanalyzers . | . . . . . . . . . . . . . . . . . . . . . . . . . . . . . . . . . . . . . Garrison Access . | . . . . . . . . . . . . . . . . . . . . . . . . . . . . . . . . . . . . . Data Cores Recovered 6 | . 1 . 2 . . 1 . . . . . . 1 1 . . . . . . . . . . . . . . . . . . . . . . Used 2 | . . . 2 . . . . . . . . . . . . . . . . . . . . . . . . . . . . . . . . . Hacking Detections 141 | . 10 . 15 . 5 25 . . . . 5 . 10 6 1 . 6 12 . . . . 9 . 12 . . . . 5 4 2 3 2 6 3 Full Trace Events 15 | . . . 2 . . 1 . . . . . . . 3 . . 1 2 . . . . 1 . 3 . . . . 2 . . . . . . Feedback Events . | . . . . . . . . . . . . . . . . . . . . . . . . . . . . . . . . . . . . . Feedback Blocked . | . . . . . . . . . . . . . . . . . . . . . . . . . . . . . . . . . . . . . Robot Schematics Acquired . | . . . . . . . . . . . . . . . . . . . . . . . . . . . . . . . . . . . . . Robots Built . | . . . . . . . . . . . . . . . . . . . . . . . . . . . . . . . . . . . . . Authchips . | . . . . . . . . . . . . . . . . . . . . . . . . . . . . . . . . . . . . . Time . | . . . . . . . . . . . . . . . . . . . . . . . . . . . . . . . . . . . . . Total Robot Build Rating . | . . . . . . . . . . . . . . . . . . . . . . . . . . . . . . . . . . . . . Part Schematics Acquired 25 | . 2 . 2 . . 1 . . 4 . 2 . . . . . . 3 . . . . 2 . 5 . . 4 . . . . . . . . Parts Built 11 | . . . . . . . . . . . . . . . . . . 2 . . . . 2 . 6 . . . . 1 . . . . . . Authchips 4 | . . . . . . . . . . . . . . . . . . . . . . . 1 . 3 . . . . . . . . . . . Time 622 | . . . . . . . . . . . . . . . . . . 68 . . . . 148 . 295 . . . . 111 . . . . . . Total Part Build Rating 73 | . . . . . . . . . . . . . . . . . . 14 . . . . 16 . 34 . . . . 9 . . . . . . Parts Repaired 15 | . 1 . 1 . 2 1 . . . . . . 2 . . . . . . . . . 5 . 1 . . . . 1 . . 1 . . . Time 508 | . 38 . 19 . 58 22 . . . . . . 114 . . . . . . . . . 143 . 34 . . . . 40 . . 40 . . . Parts Recycled . | . . . . . . . . . . . . . . . . . . . . . . . . . . . . . . . . . . . . . Recycled Matter . | . . . . . . . . . . . . . . . . . . . . . . . . . . . . . . . . . . . . . Retrieved Matter . | . . . . . . . . . . . . . . . . . . . . . . . . . . . . . . . . . . . . . Retrieved Components 38 | . 7 . 2 . 2 7 . . . . . . 6 . . . . . . . . . 5 . 6 . . . . 3 . . . . . . Parts Scanalyzed 6 | . . . 2 . . 1 . . . . 2 . . . . . . . . . . . 1 . . . . . . . . . . . . . Part Schematics Acquired 6 | . . . 2 . . 1 . . . . 2 . . . . . . . . . . . 1 . . . . . . . . . . . . . Parts Damaged 1 | . . . . . . . . . . . . . . . . . . . . . . . 1 . . . . . . . . . . . . . Bothacking | -11 -10 -10 -9 -9 -8 -7 -7 -7 -7 -6 -6 -6 -6 -6 -6 -6 -6 -5 -5 -5 -5 -4 -4 -4 -4 -4 -4 -4 -3 -3 -3 -2 -2 -2 -1 -1 ------------ Run | Yrd Mat Min Mat Min Mat Fac Low Low Zio Pro Fac Was Fac Ext Cet Arc Hub Fac Upp Upp War Pro Fac Was Fac Upp Upp Zhi Pro Res Qua Res Tes Sec Acc Com Used RIF Installer . | . . . . . . . . . . . . . . . . . . . . . . . . . . . . . . . . . . . . . Robots Hacked . | . . . . . . . . . . . . . . . . . . . . . . . . . . . . . . . . . . . . . Non-combat . | . . . . . . . . . . . . . . . . . . . . . . . . . . . . . . . . . . . . . Combat . | . . . . . . . . . . . . . . . . . . . . . . . . . . . . . . . . . . . . . Robot Hacks Applied . | . . . . . . . . . . . . . . . . . . . . . . . . . . . . . . . . . . . . . Relay Couplers Released 6 | . . . . . . . . . . . . . . . . . . 4 . . . . . . . . . . . . 1 . 1 . . . Machine Destruction 2 | . . . . . . . . . . . . . . . . . . . . . . . . . . . . . . . 1 . 1 . . . Programmers 4 | . . . . . . . . . . . . . . . . . . 4 . . . . . . . . . . . . . . . . . . Fabnet Peak Effective % . | . . . . . . . . . . . . . . . . . . . . . . . . . . . . . . . . . . . . . Robots Rewired 21 | . . . . . . . . . . . 1 . . 15 . . . . . . 5 . . . . . . . . . . . . . . . Allies Hacked . | . . . . . . . . . . . . . . . . . . . . . . . . . . . . . . . . . . . . . Hacks Repelled . | . . . . . . . . . . . . . . . . . . . . . . . . . . . . . . . . . . . . . Allies | -11 -10 -10 -9 -9 -8 -7 -7 -7 -7 -6 -6 -6 -6 -6 -6 -6 -6 -5 -5 -5 -5 -4 -4 -4 -4 -4 -4 -4 -3 -3 -3 -2 -2 -2 -1 -1 -------- Run | Yrd Mat Min Mat Min Mat Fac Low Low Zio Pro Fac Was Fac Ext Cet Arc Hub Fac Upp Upp War Pro Fac Was Fac Upp Upp Zhi Pro Res Qua Res Tes Sec Acc Com Total Allies 102 | . . 2 . 4 . . . . 5 . 1 19 2 23 5 . . 4 . . 5 . 1 20 1 . . . . 1 . 1 . . . 8 Largest Group 20 | . . 2 2 3 3 . . . 5 5 1 18 1 12 16 15 13 6 . . 5 4 1 20 1 . . . . 1 . 1 . . . 2 Highest-Rated Group 940 | . . 46 46 40 40 . . . 115 115 29 656 26 499 940 781 730 443 . . 267 226 26 748 26 . . . . 10 . 26 . . . 27 Highest-Rated Ally 159 | . . 31 31 31 16 . . . 28 28 29 50 26 159 159 96 96 96 . . 64 64 26 50 26 . . . . 10 . 26 . . . 14 Total Orders 14 | . . . . . . . . . . . . . . 4 . 3 . 5 . . . . 1 . . . . . . . . 1 . . . . STAY 10 | . . . . . . . . . . . . . . 2 . 1 . 5 . . . . 1 . . . . . . . . 1 . . . . FOLLOW 4 | . . . . . . . . . . . . . . 2 . 2 . . . . . . . . . . . . . . . . . . . . Ally Attacks 666 | . . 2 18 6 28 . . . . 16 7 116 . 147 52 34 82 28 . . 7 4 . 112 . . . . . . . . . . . 7 Total Damage 16368 | . . 22 228 102 227 . . . . 158 110 3731 . 2661 1103 953 2224 665 . . 147 227 . 3728 . . . . . . . . . . . 82 Kills 86 | . . 1 4 . 2 . . . . . 1 7 . 21 8 4 21 9 . . . 1 . 7 . . . . . . . . . . . . Allies Corrupted 3 | . . . . . . . . . . . . . . . . . . 2 . . . . . . . . . . . . . 1 . . . . Allies Melted . | . . . . . . . . . . . . . . . . . . . . . . . . . . . . . . . . . . . . . Intel | -11 -10 -10 -9 -9 -8 -7 -7 -7 -7 -6 -6 -6 -6 -6 -6 -6 -6 -5 -5 -5 -5 -4 -4 -4 -4 -4 -4 -4 -3 -3 -3 -2 -2 -2 -1 -1 ------- Run | Yrd Mat Min Mat Min Mat Fac Low Low Zio Pro Fac Was Fac Ext Cet Arc Hub Fac Upp Upp War Pro Fac Was Fac Upp Upp Zhi Pro Res Qua Res Tes Sec Acc Com Active Infowar (turns) 29390 | 15 982 723 1909 1435 1168 1866 185 201 582 215 929 489 719 1819 428 811 381 1410 116 307 475 176 1409 67 1940 263 235 216 398 1076 776 1410 1262 597 1547 853 Optics 8985 | . . . 1909 1033 . . . . 232 215 929 489 719 1819 428 811 381 20 . . . . . . . . . . . . . . . . . . Sensors 21355 | . . . . . 744 1866 185 201 582 215 770 489 650 1463 231 622 186 1409 116 307 475 176 1409 67 1930 263 235 216 390 1073 687 1250 1139 597 1410 2 Terrain 7759 | . . . . 10 . . . . . . . . . . . . . . . . . . . . 828 141 176 210 398 1072 545 1289 1087 505 1495 3 Seismic 4008 | 15 982 723 1472 392 424 . . . . . . . . . . . . . . . . . . . . . . . . . . . . . . . Jamming 6119 | . . . . . . . . . . . . . . . . . . . . . . . . . . . . . . . 565 1397 1251 508 1545 853 Robot Analysis Total 6 | . 1 . . . . . . . . . . . . . . . . . . . . . . . 1 . . 4 . . . . . . . . Derelict Logs Recovered 13 | . . 2 . 2 . . 1 . 1 2 . . . . . . . . 1 2 . 1 . . . . 1 . . . . . . . . . Drone Launches . | . . . . . . . . . . . . . . . . . . . . . . . . . . . . . . . . . . . . . Drone Recoveries . | . . . . . . . . . . . . . . . . . . . . . . . . . . . . . . . . . . . . . Exploration | -11 -10 -10 -9 -9 -8 -7 -7 -7 -7 -6 -6 -6 -6 -6 -6 -6 -6 -5 -5 -5 -5 -4 -4 -4 -4 -4 -4 -4 -3 -3 -3 -2 -2 -2 -1 -1 ------------- Run | Yrd Mat Min Mat Min Mat Fac Low Low Zio Pro Fac Was Fac Ext Cet Arc Hub Fac Upp Upp War Pro Fac Was Fac Upp Upp Zhi Pro Res Qua Res Tes Sec Acc Com Turns Passed 31394 | 114 1319 723 1909 1710 1347 1894 187 235 582 215 929 489 719 1819 428 811 381 1464 139 307 490 176 1574 67 2036 263 235 216 398 1128 782 1410 1378 716 1547 1257 Spaces Moved 27743 | 56 849 597 1312 864 653 3166 402 436 671 412 1279 440 947 966 245 386 376 2046 200 433 640 216 1643 121 2278 326 263 180 286 716 466 761 759 694 980 678 Core 8 | 8 . . . . . . . . . . . . . . . . . . . . . . . . . . . . . . . . . . . . Treads . | . . . . . . . . . . . . . . . . . . . . . . . . . . . . . . . . . . . . . Legs 5094 | . . . . . . . . . . . . . . . . . . . . . . . . . . . . 99 286 716 466 761 759 419 921 667 Wheels 4323 | 48 849 597 1312 864 653 . . . . . . . . . . . . . . . . . . . . . . . . . . . . . . . Hover 17973 | . . . . . . 3166 402 436 671 412 1279 440 947 966 245 386 376 2046 200 433 640 216 1643 121 2278 326 263 81 . . . . . . . . Flight . | . . . . . . . . . . . . . . . . . . . . . . . . . . . . . . . . . . . . . Fastest Speed 28 | 50 80 110 110 150 105 28 38 38 38 38 33 40 40 40 50 46 44 37 42 42 44 49 47 49 48 51 51 51 120 118 118 115 115 115 113 115 Average Speed 72 | 83 92 110 118 150 130 39 38 39 38 38 41 54 45 76 71 91 65 44 42 43 44 49 51 49 56 51 51 89 120 119 118 118 115 117 114 119 Slowest Speed 260 | 90 110 110 150 150 210 105 38 98 38 38 98 95 98 98 105 107 102 117 42 44 49 49 121 49 120 51 51 190 120 188 118 185 185 182 115 260 Overloaded Moves 33 | . . . . . . 7 . . . . 5 . . . . . . 21 . . . . . . . . . . . . . . . . . . Propulsion Burnouts . | . . . . . . . . . . . . . . . . . . . . . . . . . . . . . . . . . . . . . Robots Hopped . | . . . . . . . . . . . . . . . . . . . . . . . . . . . . . . . . . . . . . Potential Cave-ins 3 | . . . . . . . . . . . . . . . . . . . . . . . . . . . . . . . 2 . . . 1 . Cave-ins Triggered . | . . . . . . . . . . . . . . . . . . . . . . . . . . . . . . . . . . . . . Teleports 1 | . . . . . . . . . . . . . . . . . . . . . . . . . . . . . . . 1 . . . . . Microwarps 25 | . . . . . . . . . . . . . . . . . . . . . . . . . . . . . . . . . . 18 6 1 Exploration Rate (%) 57 | 4 97 98 95 100 41 72 61 56 83 65 30 96 33 89 71 94 43 46 45 50 78 42 43 81 41 55 46 60 52 23 69 23 77 34 22 27 Regions Visited 36 Branch Regions 22 Pre-discovered Areas 6 | . . . . . . . . . 2 . . . . . . . . . . . . . . . . 1 . 3 . . . . . . . . Known Exits Taken 28 | . . . 1 . 1 1 1 1 1 1 . . 1 1 1 1 1 1 1 1 1 1 . . 1 1 1 1 1 1 1 1 1 1 1 . Unknown Exits Taken 4 | 1 1 1 . 1 . . . . . . . . . . . . . . . . . . . . . . . . . . . . . . . . Scrap Searched 22 | . . 1 . 1 . . 3 . 3 2 . . . . . . . . 2 2 . 2 . . . 1 2 . 3 . . . . . . . Spaces Dug 449 | . . . 5 . . 47 2 3 . 2 21 . 17 1 . . 5 28 . 4 1 2 40 . 51 1 3 . 8 6 33 27 18 66 42 16 Terrain Destroyed 1813 | . . . 30 . . 50 3 35 . 3 98 5 27 29 . 2 341 53 5 5 98 6 67 . 105 6 27 . 17 30 114 129 109 171 99 149 Melee 234 | . . . . . . 45 1 2 . 2 15 . 6 1 . . 3 26 . 3 1 1 35 . 40 1 2 . . . 10 11 12 1 16 . Projectile 682 | . . . . . . 5 2 4 . 1 18 5 21 24 . 2 13 13 5 2 . 5 32 . 41 5 2 . 17 17 73 36 47 125 57 110 AOE 876 | . . . 30 . . . . 29 . . 65 . . 4 . . 325 13 . . 97 . . . 24 . 23 . . 13 31 82 50 45 12 33 Terrain Rammed . | . . . . . . . . . . . . . . . . . . . . . . . . . . . . . . . . . . . . . Walls Destroyed . | . . . . . . . . . . . . . . . . . . . . . . . . . . . . . . . . . . . . . Machines Disabled . | . . . . . . . . . . . . . . . . . . . . . . . . . . . . . . . . . . . . . Actions | -11 -10 -10 -9 -9 -8 -7 -7 -7 -7 -6 -6 -6 -6 -6 -6 -6 -6 -5 -5 -5 -5 -4 -4 -4 -4 -4 -4 -4 -3 -3 -3 -2 -2 -2 -1 -1 --------- Run | Yrd Mat Min Mat Min Mat Fac Low Low Zio Pro Fac Was Fac Ext Cet Arc Hub Fac Upp Upp War Pro Fac Was Fac Upp Upp Zhi Pro Res Qua Res Tes Sec Acc Com Total 36460 | 94 1266 663 1548 1193 978 3660 423 476 998 454 1580 614 1168 1925 488 792 460 2481 232 545 822 275 2212 128 2861 408 348 219 323 951 643 1164 1167 605 1292 1004 Wait 5657 | 12 274 59 96 259 161 262 4 8 305 33 145 88 138 739 212 327 46 291 19 93 115 45 392 6 390 74 73 4 10 128 71 246 233 60 186 53 Move 27392 | 55 848 596 1311 863 652 3165 401 435 670 411 1279 439 946 965 244 385 375 2046 199 432 639 215 1643 120 2277 325 262 179 285 715 465 761 758 437 926 668 Hop . | . . . . . . . . . . . . . . . . . . . . . . . . . . . . . . . . . . . . . Pick Up 361 | 5 21 8 22 7 26 19 1 1 8 . 13 2 8 7 3 5 . 20 . 5 7 4 22 1 18 . 1 6 2 9 12 9 16 14 26 33 Fast Attach 126 | 6 1 . 1 2 5 8 1 1 1 . 5 3 2 6 4 3 1 6 . . . . 10 . 6 . . 5 . 9 4 5 10 8 3 10 Attach 180 | 1 5 . 3 6 3 7 1 2 . . 10 . 2 17 . 3 . 6 1 . . . 6 . 8 . 1 1 2 13 2 13 9 12 10 36 Detach 134 | . . . . 1 . 6 . 2 . . 8 . 2 15 4 1 . 1 . . . . 1 . 4 . . 2 2 11 3 13 12 13 8 25 Swap 486 | 1 17 . 18 2 18 30 1 2 5 . 25 6 8 13 8 13 9 32 3 4 14 1 31 . 43 2 2 10 2 16 32 29 35 16 21 17 Drop 422 | . 21 . 25 5 24 42 . 2 9 . 19 8 10 11 5 7 2 17 . 6 7 1 21 1 18 . . 6 2 16 18 13 29 13 28 36 Fire 1169 | 14 79 . 72 43 89 19 13 21 . 5 39 68 32 59 8 48 23 26 7 2 14 8 40 . 49 6 5 . 18 34 23 58 50 26 53 118 Melee 343 | . . . . . . 63 1 2 . 5 23 . 7 5 . . 4 36 3 3 1 1 46 . 48 1 4 6 . . 13 16 15 6 26 8 Ram 1 | . . . . 1 . . . . . . . . . . . . . . . . . . . . . . . . . . . . . . . . Kick 1 | . . . . . . . . . . . . . . . . . . . . . . . . . . . . . . . . 1 . . . . Crush . | . . . . . . . . . . . . . . . . . . . . . . . . . . . . . . . . . . . . . Escape Stasis 111 | . . . . . . 39 . . . . 13 . 13 41 . . . . . . . . . . . . . . . . . . . . 5 . Rewire 73 | . . . . . . . . . . . 1 . . 47 . . . . . . 25 . . . . . . . . . . . . . . . Trap 4 | . . . . 4 . . . . . . . . . . . . . . . . . . . . . . . . . . . . . . . . Miscellaneous . | . . . . . . . . . . . . . . . . . . . . . . . . . . . . . . . . . . . . . Route ------- -11/Scrapyard -10/Materials (discovered 5 exits: *Mat x3 / *Min x2) -10/Mines (discovered 4 exits: *Mat x2 / [*Exi] / [*Sub]) -9/Materials (discovered 5 exits: *Mat x3 / *Min x2) -9/Mines (discovered 2 exits: *Mat x2) -8/Materials -7/Factory (discovered 7 exits: *Fac x3 / *Sto x2 / *Low x2) -7/Lower Caves -7/Lower Caves -7/Zion -6/Proximity Caves -6/Factory (discovered 4 exits: *Fac / *Low x2 / *Ext) -6/Waste -6/Factory (discovered 5 exits: *Fac / Low x2 / *Ext x2) -6/Extension (discovered 2 exits: *Fac / *Cet) -6/Cetus (discovered 2 exits: *Fac / *Arc) -6/Archives (discovered 3 exits: *Fac / *Hub x2) -6/Hub_04(d) -5/Factory (discovered 4 exits: *Fac x2 / *Upp x2) -5/Upper Caves -5/Upper Caves -5/Warlord -4/Proximity Caves -4/Factory (discovered 4 exits: *Res x2 / Upp x2) -4/Waste -4/Factory (discovered 3 exits: *Res / *Upp x2) -4/Upper Caves -4/Upper Caves (discovered 2 exits: Res / *Zhi) -4/Zhirov -3/Proximity Caves -3/Research (discovered 3 exits: Arm / *Qua x2) -3/Quarantine -2/Research -2/Testing (discovered 3 exits: *Acc / *Sec / [*Frg]) -2/Section 7 -1/Access (discovered 2 exits: *Com / Gar) -1/Command History --------- Turn | Location | Event 8 | -11/Scrapyard | Discovered new exit (range 15) 115 | -11/Scrapyard | Entered Materials 121 | -10/Materials | Discovered new exit (range 15) 230 | -10/Materials | Discovered new exit (range 10) 301 | -10/Materials | Build established: Mutant 339 | -10/Materials | Discovered new exit (range 9) 453 | -10/Materials | Discovered new exit (range 16) 675 | -10/Materials | Core integrity fell below 50% 1033 | -10/Materials | Repaired Imp. Heat Sink 1272 | -10/Materials | Discovered new exit (range 5) 1331 | -10/Materials | Central database locked down 1434 | -10/Materials | Entered Mines 1439 | -10/Mines | Met a Derelict bent on vengeance 1509 | -10/Mines | Discovered new exit (range 14) 1610 | -10/Mines | Discovered new exit (range 10) 1708 | -10/Mines | Discovered new exit (range 11) 1770 | -10/Mines | Found a hidden stash of uninstalled traps 1785 | -10/Mines | Learned 2 Materials zone layouts 1923 | -10/Mines | Learned Materials terminal intel 1990 | -10/Mines | Deemed a non-threat by the Exiles lab entrance 1990 | -10/Mines | Discovered new exit (range 5) 2069 | -10/Mines | Met a Derelict shopkeep closing up shop 2157 | -10/Mines | Entered Materials 2157 | -9/Materials | Accompanied by 2 allies 2157 | -9/Materials | Evolved 2 slots: Utility x2 2158 | -9/Materials | Identified exit to Mines 2159 | -9/Materials | Loaded intel: 12 terminal locations 2162 | -9/Materials | Led the pair of lost Derelicts to an unsafe place 2328 | -9/Materials | Discovered exit to Mines (range 19) 2622 | -9/Materials | Discovered new exit (range 11) 2914 | -9/Materials | Discovered new exit (range 18) 3693 | -9/Materials | Discovered new exit (range 10) 4047 | -9/Materials | Repaired Missile Launcher 4066 | -9/Materials | Entered Mines 4316 | -9/Mines | Met a Derelict testing a Signal Generator 4325 | -9/Mines | Found Signal Generator 4752 | -9/Mines | Learned Materials security intel 4980 | -9/Mines | Discovered new exit (range 16) 4999 | -9/Mines | Received a Rocket Launcher from a helpful Derelict 5073 | -9/Mines | Excavation squad dispatched 5073 | -9/Mines | A large section of the Mines collapsed 5203 | -9/Mines | Lost 3 parts (1n2u) 5290 | -9/Mines | Discovered new exit (range 10) 5494 | -9/Mines | Assisted by bots powering up and referring to "LRC-V3" 5495 | -9/Mines | Learned Materials stockpile data 5776 | -9/Mines | Entered Materials 5776 | -8/Materials | Accompanied by 3 allies 5776 | -8/Materials | Evolved 2 slots: Propulsion x2 6113 | -8/Materials | Build established: Scavenger-Mutant 6304 | -8/Materials | Discovered new exit (range 5) 6507 | -8/Materials | Build established: Mutant 6688 | -8/Materials | Lost 3 parts (3n) 7057 | -8/Materials | Repaired Hcp. Storage Unit 7090 | -8/Materials | Repaired Imp. Hover Unit 7122 | -8/Materials | Identified exit to Factory 7123 | -8/Materials | Entered Factory 7123 | -7/Factory | Evolved 2 slots: Propulsion x1, Utility x1 7612 | -7/Factory | Discovered new exit (range 15) 7618 | -7/Factory | Identified exit to Factory 7870 | -7/Factory | Discovered exit to Factory (range 3) 8067 | -7/Factory | Repaired Power Maul 8524 | -7/Factory | Discovered exit to Factory (range 10) 8673 | -7/Factory | Discovered new exit (range 5) 8674 | -7/Factory | Identified exit to Storage 8844 | -7/Factory | Identified exit to Lower Caves 9017 | -7/Factory | Entered Lower Caves 9026 | -7/Lower Caves | Found Alien Artifact 9026 | -7/Lower Caves | Identified Core Expander 9026 | -7/Lower Caves | Installed Core Expander, added new Weapon slot 9062 | -7/Lower Caves | Learned Factory interactive machine intel 9193 | -7/Lower Caves | Encountered a Warlord checkpoint 9199 | -7/Lower Caves | Discovered new exit (range 15) 9204 | -7/Lower Caves | Identified exit to Lower Caves 9204 | -7/Lower Caves | Entered another Lower Caves area 9218 | -7/Lower Caves | Encountered a Warlord checkpoint 9426 | -7/Lower Caves | Discovered new exit (range 15) 9435 | -7/Lower Caves | Identified exit to Zion 9439 | -7/Lower Caves | Entered Zion 9454 | -7/Zion | Given the Hacking Drone Bay 9507 | -7/Zion | Learned location of Data Miner (-6) 9507 | -7/Zion | Learned location of Warlord (-5) 9595 | -7/Zion | Found Prototype Processor 9596 | -7/Zion | Found Prototype Processor 9628 | -7/Zion | Identified Exp. Target Analyzer 9668 | -7/Zion | Identified Spectral Analyzer 9684 | -7/Zion | Found Prototype Processor 9704 | -7/Zion | Identified Exp. Terrain Scan Processor 9768 | -7/Zion | Found Prototype Processor 9774 | -7/Zion | Identified Exp. Targeting Computer 9805 | -7/Zion | Found Prototype Special Weapon 9805 | -7/Zion | Identified RU-N14's Throwing Claymores 9809 | -7/Zion | Found RU-N14's Throwing Claymores 9857 | -7/Zion | Gained Derelict followers 9894 | -7/Zion | Discovered new exit (range 9) 10020 | -7/Zion | Identified exit to Proximity Caves 10021 | -7/Zion | Entered Proximity Caves 10021 | -6/Proximity Caves | Accompanied by 5 allies 10024 | -6/Proximity Caves | Spotter reported a threat 10089 | -6/Proximity Caves | Lost 5 allies 10096 | -6/Proximity Caves | Build established: Scout 10169 | -6/Proximity Caves | Learned Factory non-interactive machine intel 10204 | -6/Proximity Caves | Learned Factory security intel 10234 | -6/Proximity Caves | Discovered exit to Factory (range 7) 10236 | -6/Proximity Caves | Entered Factory 10236 | -6/Factory | Evolved 2 slots: Utility x2 10238 | -6/Factory | Loaded intel: 205 non-interactive machine locations 10239 | -6/Factory | Loaded intel: 54 interactive machine locations 10262 | -6/Factory | Discovered new exit (range 17) 10273 | -6/Factory | Identified exit to Factory 10348 | -6/Factory | Discovered new exit (range 24) 10387 | -6/Factory | Identified exit to Lower Caves 10531 | -6/Factory | Spotted B-75 Beast 10545 | -6/Factory | Build established: Hacker-Scout 10547 | -6/Factory | Discovered new exit (range 6) 10590 | -6/Factory | Discovered exit to Lower Caves (range 18) 11165 | -6/Factory | Sucked down chute 11165 | -6/Factory | Entered Waste 11166 | -6/Waste | Met a frightened Derelict 11195 | -6/Waste | Spotted C-40 Crusher 11211 | -6/Waste | Spotted C-40 Crusher 11212 | -6/Waste | Spotted C-40 Crusher 11217 | -6/Waste | Warlord forces began an assault 11233 | -6/Waste | Spotted C-40 Crusher 11235 | -6/Waste | Allies destroyed C-40 Crusher 11241 | -6/Waste | Destroyed C-40 Crusher 11253 | -6/Waste | Allies destroyed C-40 Crusher 11263 | -6/Waste | Spotted C-40 Crusher 11266 | -6/Waste | Spotted C-40 Crusher 11268 | -6/Waste | Allies destroyed C-40 Crusher 11281 | -6/Waste | Allies destroyed C-40 Crusher 11327 | -6/Waste | Discovered new exit (range 24) 11654 | -6/Waste | Identified exit to Factory 11654 | -6/Waste | Entered Factory 11773 | -6/Factory | Identified exit to Extension 11857 | -6/Factory | Discovered exit to Factory (range 13) 11934 | -6/Factory | Repaired Cld. Airjet? 11995 | -6/Factory | Repaired Hrd. Heavy Armor Plating 12373 | -6/Factory | Entered Extension 12523 | -6/Extension | Rescued a captive Derelict 12598 | -6/Extension | Rescued a captive Derelict 12601 | -6/Extension | Rescued a captive Derelict 12861 | -6/Extension | Spotted B-75 Beast 12968 | -6/Extension | Build established: Commander-Skirmisher 13571 | -6/Extension | Destroyed B-75 Beast 13587 | -6/Extension | Spotted B-75 Beast 13598 | -6/Extension | Lost 3 allies 13783 | -6/Extension | Destroyed B-75 Beast 13851 | -6/Extension | Rescued a captive Derelict 13882 | -6/Extension | Rescued A7 13892 | -6/Extension | Rescued a captive Derelict 13893 | -6/Extension | Rescued a captive Derelict 14067 | -6/Extension | Rescued a captive Derelict 14067 | -6/Extension | Rescued a captive Derelict 14127 | -6/Extension | Discovered exit to Factory (range 10) 14128 | -6/Extension | Discovered new exit (range 6) 14139 | -6/Extension | Identified exit to Cetus 14192 | -6/Extension | Entered Cetus 14192 | -6/Cetus | Accompanied by 11 allies (A7) 14197 | -6/Cetus | Acquired a Cetus Manufacturing Module code from A7 14209 | -6/Cetus | Spotted Cetus Guard 14209 | -6/Cetus | Spotted Cetus Guard 14218 | -6/Cetus | Spotted Cetus Guard 14218 | -6/Cetus | Spotted Cetus Guard 14222 | -6/Cetus | Allies destroyed Cetus Guard 14223 | -6/Cetus | Allies destroyed Cetus Guard 14224 | -6/Cetus | Allies destroyed Cetus Guard 14230 | -6/Cetus | Allies destroyed Cetus Guard 14281 | -6/Cetus | Started Cetus Manufacturing Module 14306 | -6/Cetus | Manufactured an Enhanced Grunt 14331 | -6/Cetus | Manufactured an Enhanced Grunt 14356 | -6/Cetus | Manufactured an Enhanced Grunt 14381 | -6/Cetus | Manufactured an Enhanced Grunt 14406 | -6/Cetus | Manufactured an Enhanced Grunt 14447 | -6/Cetus | Discovered new exit (range 23) 14470 | -6/Cetus | Spotted Cetus Guard 14471 | -6/Cetus | Spotted Cetus Guard 14472 | -6/Cetus | Spotted Cetus Guard 14472 | -6/Cetus | Spotted Cetus Guard 14473 | -6/Cetus | Discovered exit to Factory (range 23) 14480 | -6/Cetus | Allies destroyed Cetus Guard 14493 | -6/Cetus | Allies destroyed Cetus Guard 14499 | -6/Cetus | Allies destroyed Cetus Guard 14502 | -6/Cetus | Destroyed Cetus Guard 14521 | -6/Cetus | Met Revision 17 14592 | -6/Cetus | Identified exit to Archives 14620 | -6/Cetus | Entered Archives 14620 | -6/Archives | Accompanied by 16 allies (A7) 14651 | -6/Archives | Discovered new exit (range 24) 14652 | -6/Archives | Discovered exit to Factory (range 18) 14781 | -6/Archives | Build established: Commander-Tank 14842 | -6/Archives | Discovered new exit (range 17) 15090 | -6/Archives | Build established: Commander-Skirmisher 15379 | -6/Archives | Identified exit to Hub_04(d) 15431 | -6/Archives | Entered Hub_04(d) 15431 | -6/Hub_04(d) | Accompanied by 13 allies 15457 | -6/Hub_04(d) | Discovered exit to Factory (range 10) 15781 | -6/Hub_04(d) | First assault squad dispatched 15785 | -6/Hub_04(d) | Network Hub disabled 15788 | -6/Hub_04(d) | Network Hub disabled 15797 | -6/Hub_04(d) | System corruption reached 10% 15812 | -6/Hub_04(d) | Entered Factory 15812 | -5/Factory | Accompanied by 6 allies 15812 | -5/Factory | Evolved 2 slots: Propulsion x1, Utility x1 15813 | -5/Factory | Identified exit to Upper Caves 15820 | -5/Factory | Lost 6 allies 16112 | -5/Factory | First assault squad dispatched 16156 | -5/Factory | Build established: Hacker-Mutant 16421 | -5/Factory | Fabricated Adv. Hacking Suite? 16848 | -5/Factory | Discovered new exit (range 8) 16851 | -5/Factory | Identified exit to Factory 16899 | -5/Factory | Central database locked down 16928 | -5/Factory | Discovered exit to Factory (range 4) 17043 | -5/Factory | Fabricated Gamma Bomb Array (x1) 17276 | -5/Factory | Entered Upper Caves 17373 | -5/Upper Caves | Learned location of 1 exit from Proximity Caves 17407 | -5/Upper Caves | Discovered new exit (range 16) 17414 | -5/Upper Caves | Identified exit to Upper Caves 17415 | -5/Upper Caves | Entered another Upper Caves area 17510 | -5/Upper Caves | Learned Factory emergency access door positions 17679 | -5/Upper Caves | Learned Factory emergency access door positions 17717 | -5/Upper Caves | Discovered new exit (range 9) 17720 | -5/Upper Caves | Identified exit to Warlord 17722 | -5/Upper Caves | Entered Warlord 17890 | -5/Warlord | Visited the Vortex Lab 17892 | -5/Warlord | Found Prototype Energy Cannon 17892 | -5/Warlord | Identified Vortex Cannon 17896 | -5/Warlord | Found Prototype Energy Gun 17896 | -5/Warlord | Identified Vortex Shotgun 17899 | -5/Warlord | Found Vortex Cannon 17910 | -5/Warlord | Warlord's base attacked by MAIN.C 17964 | -5/Warlord | Found Prototype Device 17964 | -5/Warlord | Identified System Purifier 17980 | -5/Warlord | Found Prototype Reactor 17983 | -5/Warlord | Found Prototype Hackware 17983 | -5/Warlord | Identified System Mapper 17988 | -5/Warlord | Found Exp. Targeting Computer 18088 | -5/Warlord | Spotted B-75 Beast 18139 | -5/Warlord | Warlord forces counterattacked 18170 | -5/Warlord | Discovered new exit (range 12) 18174 | -5/Warlord | Destroyed 11 combat bots 18174 | -5/Warlord | Identified exit to Proximity Caves 18212 | -5/Warlord | Entered Proximity Caves 18212 | -4/Proximity Caves | Accompanied by 4 allies 18383 | -4/Proximity Caves | Learned Research stockpile data 18388 | -4/Proximity Caves | Entered Factory 18388 | -4/Factory | Evolved 2 slots: Utility x2 18678 | -4/Factory | Build established: Wizard-Mutant 18723 | -4/Factory | Central database locked down 18723 | -4/Factory | Identified exit to Upper Caves 18785 | -4/Factory | Fabricated Exp. Signal Interpreter? 18873 | -4/Factory | Found Prototype Launcher 18873 | -4/Factory | Identified Com. Tesla Bomb Launcher 18906 | -4/Factory | Discovered new exit (range 13) 19135 | -4/Factory | Identified Vortex Chain Reactor 19283 | -4/Factory | Repaired Lrn. Sensor Array 19387 | -4/Factory | Discovered new exit (range 15) 19540 | -4/Factory | Fabricated Vortex Chain Reactor? 19643 | -4/Factory | Repaired Cmb. Airjet 19670 | -4/Factory | Repaired Cmb. Airjet 19757 | -4/Factory | Repaired Railgun 19791 | -4/Factory | Repaired Imp. Antigrav System 19962 | -4/Factory | Manually triggered Chute Trap 19962 | -4/Factory | Sucked down chute 19962 | -4/Factory | Entered Waste 19963 | -4/Waste | Met a frightened Derelict 19971 | -4/Waste | Warlord forces began an assault 19974 | -4/Waste | Spotted C-40 Crusher 19976 | -4/Waste | Spotted C-40 Crusher 19995 | -4/Waste | Spotted C-40 Crusher 19999 | -4/Waste | Spotted C-40 Crusher 20001 | -4/Waste | Spotted C-40 Crusher 20002 | -4/Waste | Spotted C-40 Crusher 20024 | -4/Waste | Discovered new exit (range 10) 20028 | -4/Waste | Identified exit to Factory 20029 | -4/Waste | Entered Factory 20031 | -4/Factory | Lost 7 allies 20064 | -4/Factory | Discovered exit to Upper Caves (range 16) 20545 | -4/Factory | Fabricated Prc. Energy Filter? 20669 | -4/Factory | Discovered new exit (range 12) 20812 | -4/Factory | Repaired Gamma Bomb Array? 20848 | -4/Factory | Build established: Wizard-Scout 21076 | -4/Factory | Fabricated Exp. Utility Shielding (x1) 21119 | -4/Factory | Fabricated Exp. Utility Shielding? 21292 | -4/Factory | Fabricated Exp. Terrain Scan Processor (x1) 21589 | -4/Factory | Build established: Hacker-Assassin 21602 | -4/Factory | Found Quantum Capacitor 21797 | -4/Factory | Fabricated Prc. Energy Filter (x1) 21849 | -4/Factory | Found Exp. Hacking Suite 21873 | -4/Factory | Fabricated Hvy. Reactive Plating? 22065 | -4/Factory | Entered Upper Caves 22091 | -4/Upper Caves | Encountered a Warlord checkpoint 22245 | -4/Upper Caves | Entered an active Warlord outpost 22249 | -4/Upper Caves | Learned location of Armory (-3) 22249 | -4/Upper Caves | Learned 8 Factory zone layouts 22249 | -4/Upper Caves | Learned Armory emergency access door positions 22249 | -4/Upper Caves | Learned Factory stockpile data 22249 | -4/Upper Caves | Learned Extension terminal intel 22324 | -4/Upper Caves | Discovered new exit (range 3) 22326 | -4/Upper Caves | Identified exit to Upper Caves 22328 | -4/Upper Caves | Entered another Upper Caves area 22331 | -4/Upper Caves | Discovered new exit (range 16) 22355 | -4/Upper Caves | Entered a destroyed Warlord outpost 22521 | -4/Upper Caves | Discovered new exit (range 21) 22562 | -4/Upper Caves | Identified exit to Zhirov 22563 | -4/Upper Caves | Entered Zhirov 22563 | -4/Zhirov | Discovered new exit (range 3) 22565 | -4/Zhirov | Identified exit to Proximity Caves 22574 | -4/Zhirov | Met Zhirov 22585 | -4/Zhirov | Learned location of Quarantine (-3) 22585 | -4/Zhirov | Learned location of Testing (-2) 22585 | -4/Zhirov | Learned location of Command (-1) 22588 | -4/Zhirov | Zhirov requested help retrieving the SGEMP Prototype 22600 | -4/Zhirov | Found Alien Artifact 22600 | -4/Zhirov | Identified Integrated Reactor 22600 | -4/Zhirov | Installed Integrated Reactor, increased core energy generation (+10) 22721 | -4/Zhirov | Found Alien Artifact 22779 | -4/Zhirov | Entered Proximity Caves 23073 | -3/Proximity Caves | Build established: Machinist-Mutant 23095 | -3/Proximity Caves | Discovered new exit (range 23) 23176 | -3/Proximity Caves | Identified exit to Research 23177 | -3/Proximity Caves | Entered Research 23177 | -3/Research | Evolved 2 slots: Power x1, Weapon x1 23377 | -3/Research | Revision forces began assault on 0b10 23445 | -3/Research | Met up with Revision 17++ 23644 | -3/Research | Identified exit to Armory 23644 | -3/Research | Identified exit to Quarantine 23877 | -3/Research | Research terminal network offline 24085 | -3/Research | Fabricated Vortex Chain Reactor? 24193 | -3/Research | Repaired Exp. Utility Shielding 24305 | -3/Research | Entered Quarantine 24312 | -3/Quarantine | Found Alien Artifact 24445 | -3/Quarantine | Found Alien Slashing Weapon 24445 | -3/Quarantine | Identified Sigix Broadsword 24508 | -3/Quarantine | Cryocooling Duct disabled 24523 | -3/Quarantine | Ambient heat levels rising (+20) 24523 | -3/Quarantine | Non-combat units ordered to evacuate 24553 | -3/Quarantine | Build established: Assassin 24555 | -3/Quarantine | Found Alien Energy Cannon 24555 | -3/Quarantine | Identified Core Cannon 24673 | -3/Quarantine | Identified Transdimensional Reconstructor 24673 | -3/Quarantine | Warped through subspace 24830 | -3/Quarantine | Found Alien Artifact 24859 | -3/Quarantine | Identified Phase Redirector 25005 | -3/Quarantine | Discovered new exit (range 22) 25030 | -3/Quarantine | Identified Core Reset Matrix 25086 | -3/Quarantine | Identified exit to Research 25087 | -3/Quarantine | Entered Research 25087 | -2/Research | Evolved 2 slots: Utility x2 25088 | -2/Research | Identified exit to Testing 25480 | -2/Research | Build established: Machinist-Assassin 25504 | -2/Research | Spotted B-90 Cyclops 26393 | -2/Research | Destroyed 8 combat bots 26412 | -2/Research | Found Prototype Device 26421 | -2/Research | Identified Exp. Thermal Defense Suite 26436 | -2/Research | Found Gamma Bomb Array 26497 | -2/Research | Entered Testing 26576 | -2/Testing | Repaired Exp. Utility Shielding 26677 | -2/Testing | Destroyed 8 combat bots 26799 | -2/Testing | Found Prototype Leg 26799 | -2/Testing | Identified Myomer Exoskeleton 26997 | -2/Testing | First assault squad dispatched 27052 | -2/Testing | Found Prototype Launcher 27053 | -2/Testing | Identified Gui. Micro-nuke Launcher 27072 | -2/Testing | Used Core Reset Matrix 27380 | -2/Testing | Found Prototype Ballistic Cannon 27380 | -2/Testing | Identified Perforator 27526 | -2/Testing | Build established: Alien-Assassin 27536 | -2/Testing | Discovered new exit (range 24) 27749 | -2/Testing | Spotted Fortress 27828 | -2/Testing | Discovered new exit (range 5) 27828 | -2/Testing | Discovered new exit (range 6) 27832 | -2/Testing | Identified exit to Section 7 27875 | -2/Testing | Entered Section 7 27876 | -2/Section 7 | Detected hypermatrix surge 27876 | -2/Section 7 | Sensed 19 artifacts in vicinity 27947 | -2/Section 7 | Found Microwarp Drive 28030 | -2/Section 7 | Found Integrity Redistributor 28133 | -2/Section 7 | Found Integrated Reactor 28133 | -2/Section 7 | Installed Integrated Reactor, increased core energy generation (+10) 28160 | -2/Section 7 | Found Integrated Reactor 28160 | -2/Section 7 | Installed Integrated Reactor, increased core energy generation (+10) 28216 | -2/Section 7 | Found LRC Storage 28216 | -2/Section 7 | Installed LRC Storage, increased inventory capacity (+2) 28225 | -2/Section 7 | Found LRC Storage 28225 | -2/Section 7 | Installed LRC Storage, increased inventory capacity (+2) 28302 | -2/Section 7 | Discovered new exit (range 24) 28340 | -2/Section 7 | Core integrity fell below 50% 28422 | -2/Section 7 | Spotted Executioner 28423 | -2/Section 7 | Spotted Executioner 28427 | -2/Section 7 | Destroyed Executioner 28428 | -2/Section 7 | Destroyed Executioner 28451 | -2/Section 7 | Found Corrupted Prototype Device 28473 | -2/Section 7 | Identified Adv. Kinecellerator 28491 | -2/Section 7 | Found Transdimensional Reconstructor 28495 | -2/Section 7 | Found Hpw. Transdimensional Reconstructor 28579 | -2/Section 7 | Identified exit to Access 28584 | -2/Section 7 | System corruption reached 10% 28587 | -2/Section 7 | System corruption reached 30% 28589 | -2/Section 7 | Core integrity fell below 20% 28591 | -2/Section 7 | Entered Access 28591 | -1/Access | Evolved 2 slots: Utility x2 28643 | -1/Access | Identified exit to Garrison 28824 | -1/Access | Found Prototype Device 28840 | -1/Access | Identified Exp. Shock Absorption System 29122 | -1/Access | Identified exit to Command 29397 | -1/Access | Found Prototype Processor 29401 | -1/Access | Identified Spectral Analyzer 29841 | -1/Access | First assault squad dispatched 30138 | -1/Access | Entered Command 30417 | -1/Command | Spotted B-99 Colossus 30470 | -1/Command | Build established: Alien-Mutant 30516 | -1/Command | Found Corrupted Prototype Device 30528 | -1/Command | Identified Thermal Barrier 30712 | -1/Command | System corruption reached 10% 30888 | -1/Command | First assault squad dispatched 30889 | -1/Command | Spotted Combat Programmer 30905 | -1/Command | Spotted Combat Programmer 30910 | -1/Command | Spotted M Guard 30912 | -1/Command | Destroyed Combat Programmer 30914 | -1/Command | Spotted M Guard 30929 | -1/Command | Destroyed M Guard 30976 | -1/Command | Used Integrity Redistributor, redistributed integrity from core (-399) 30977 | -1/Command | Emitted hypermatrix ping 30977 | -1/Command | Core integrity fell below 50% 30982 | -1/Command | Assembled emerged from beneath the floor 30989 | -1/Command | Destroyed M Guard 31000 | -1/Command | System corruption reached 30% 31016 | -1/Command | Lost 8 allies 31029 | -1/Command | Found Corrupted Prototype Protection 31031 | -1/Command | Destroyed 16 combat bots 31036 | -1/Command | Identified Hvy. Regenerative Plating 31042 | -1/Command | Found Corrupted Prototype Reactor 31049 | -1/Command | Identified Zero-point Reactor 31050 | -1/Command | Core integrity fell below 20% 31063 | -1/Command | Found Corrupted Prototype Device 31096 | -1/Command | Identified AEGIS Remote Shield 31255 | -1/Command | Met MAIN.C 31259 | -1/Command | 0b10 Conduit disabled 31342 | -1/Command | High security lockdown imminent 31342 | -1/Command | Destroyed MAIN.C Shell 31344 | -1/Command | MAIN.C activated Command garrisons 31395 | -1/Command | Destroyed by MAIN.C with Omega Cannon Last Messages --------------- 31379_ Destroyed Unknown Wheel. 31379_ R-10 Processor destroyed. 31380_ Knocked back. 31381_ Slug penetrates Reinforced Barrier. 31381_ MAIN.C knocked back. 31383_ Knocked back. 31384_ Slug penetrates MAIN.C. 31386_ Knocked back. 31386_ Slug penetrates MAIN.C. 31386_ MAIN.C knocked back. 31389_ Slug penetrates MAIN.C. 31389_ Knocked back. 31391_ Penetrated by Slug. 31392_ Knocked back. 31393_ Acquired 11 matter. 31395_ System corrupted: FCS attempts to trigger Helical Railgun. 31395_ System corrupted: Helical Railgun misfires. 31395_ Penetrated by Slug. 31395_ Adv. Kinecellerator destroyed. 31395_ Penetrated by Slug. Map ----- +----------------------------------------------------+ | ?????????????????????????????????????????????????? | | ?????????????????????????????????????????????????? | | ?????????????????????????????????????????????????? | | ?????????????????????????????????????????????????? | | ?????????????????????????????????????????????????? | | ?????????????????????????????????????????????????? | | ?????????????????????????????????????????????????? | | ?????????????????????????????????????????????????? | | ?????????????????????????????????????????????????? | | ?????????????????????????????????????????????????? | | ?????????????????????????????????????????????????? | | ?????????????????????????????????????????????????? | | ?????????????????????????????????????????????????? | | ?????????????????????????????????????????????????? | | ?????????????????????????????????????????????????? | | ?????????????????#############???????????????????? | | ??????????????? """" #???????????????????? | | ????????????? "" #???????????????????? | | ???????????"" "" ##################### | | ????????????""""""" / | | ????????" " """ / | | ???????#"" """""" ; | | ???????# """" ################### | | ???????# " % % #?????????????????# | | ?????### % % %%#?????????????????# | | ??"" " " %%!% p! @%% #?????????????????# | | ?? " " M ! % % % % #?????????????????#++ | | ???????# % "#?????????????????# | | ???????# % " ""#?????????????????# | | ???????# " " " " #?????????????????# | | ???????# " " " " #?????????????????# | | ???????" " " " """" " #?????????????????# | | ???????" """ " " """" #?????????????????# | | ???????" " " " " #?????????????????### | | ???????# """""""""" " #???????????????????? | | ???????# " ?"" " """"""""#???????????????????? | | ???????# ???" " " ? #???????????????????? | | ???????##??????##########?#??????????????????????? | | ?????????????????????????????????????????????????? | | ?????????????????????????????????????????????????? | | ?????????????????????????????????????????????????? | | ?????????????????????????????????????????????????? | | ?????????????????????????????????????????????????? | | ?????????????????????????????????????????????????? | | ?????????????????????????????????????????????????? | | ?????????????????????????????????????????????????? | | ?????????????????????????????????????????????????? | | ?????????????????????????????????????????????????? | | ?????????????????????????????????????????????????? | | ?????????????????????????????????????????????????? | +----------------------------------------------------+ Best States ------------- Heat Dissipation 52 Coolant Potential 200 Energy Generation 85 Energy Capacity 700 Matter Stores 300 Matter Capacity 300 Sight Range 24 Robot Scan Range 18 Terrain Scan Range 24 Terrain Scan Density 1010 Jamming Range 16 Armor Coverage 750 Resistance: KI 40 Resistance: TH 50 Resistance: EX 75 Resistance: EM 15 Utility Shielding 90 Weapon Cycling 25 Phase Shifting 15 Evasion (%) 92 Targeting Accuracy 12 Recoil Reduction 6 Matter Filtering 50 Energy Filtering 75 Particle Charging 25 Kinecelleration 50 Offensive Hacking 69 Defensive Hacking 14 Authchip Count 2 Item Schematics ----------------- None Robot Schematics ------------------ None Fabricated ------------ Adv. Hacking Suite | x1 | -5/Factory Gamma Bomb Array | x1 | -5/Factory Exp. Signal Interpreter | x1 | -4/Factory | Authchip Vortex Chain Reactor | x1 | -4/Factory Prc. Energy Filter | x1 | -4/Factory Exp. Utility Shielding | x1 | -4/Factory | Authchip Exp. Utility Shielding | x1 | -4/Factory | Authchip Exp. Terrain Scan Processor | x1 | -4/Factory | Authchip Prc. Energy Filter | x1 | -4/Factory Hvy. Reactive Plating | x1 | -4/Factory Vortex Chain Reactor | x1 | -3/Research Repaired ---------- Imp. Heat Sink | 22% | -10/Materials Missile Launcher | 70% | -9/Materials Hcp. Storage Unit | 47% | -8/Materials Imp. Hover Unit | 40% | -8/Materials Power Maul | 52% | -7/Factory Cld. Airjet | 57% | -6/Factory Hrd. Heavy Armor Plating | 74% | -6/Factory Lrn. Sensor Array | 48% | -4/Factory Cmb. Airjet | 46% | -4/Factory Cmb. Airjet | 57% | -4/Factory Railgun | 38% | -4/Factory Imp. Antigrav System | 33% | -4/Factory Gamma Bomb Array | 47% | -4/Factory Exp. Utility Shielding | 71% | -3/Research Exp. Utility Shielding | 16% | -2/Testing Alien Tech Used ----------------- Core Expander Integrated Reactor Sigix Broadsword Core Cannon Transdimensional Reconstructor Phase Redirector Core Reset Matrix Microwarp Drive LRC Storage Integrity Redistributor Achievements -------------- None Challenges ------------ None Game ------ Seed ContainmentChargeStabilizer Manual? 0 Play Time 08:41:08 Cumulative 435.6 hours Start 2025.06.18 @ 04:45:42 End 2025.06.19 @ 00:59:41 Sessions 3 Manual Loads 0 Difficulty Rogue Special Mode None Game No. 213 Rogue 213 Adventurer 0 Explorer 0 Win Type - Total 5 Types 5/0/0/0/0/0/0/0/0/0 Lore% 63 Gallery% 69 Achievement% 63 Wizard Run 0 Options --------- Layout 0 ASCII 0 Keyboard 1 Movement Vi Keybinds 0 Fullscreen 2 Font 18/SmallcapsGlow Map View 76x50 Zoom Use 0% Tactical HUD 1 Map Filters NONE Filters NONE Steam 1 RUN: 9b53a821-da67-48cc-a79d-85ab7cf95724